Workbook

Sheet Auswahl
B1: =Translation!A3 -> DHW Unit selector
B5: =Translation!A5 -> System selection | I5: =Berechnung!B82&" "&Berechnung!B81 -> DHA 4/8 L Multipoint | T5: =Berechnung!C82&" "&Berechnung!C81 -> DHC 8 Multipoint | AE5: =Berechnung!D82&" "&Berechnung!D81 -> DHC-E 8/10 Multipoint
I8: =Berechnung!B80 -> ArtNr. 73716 | T8: =Berechnung!C80 -> ArtNr. 73481 | AE8: =Berechnung!D80 -> ArtNr. 224201
B10: =Translation!A6 -> Inlet temperature
B14: =Translation!A59 -> Outlet temperature
B18: =Translation!A58 -> Maximum flow
B22: =Translation!A7 -> No. of persons
B26: =Translation!A9 -> Draw-off point
B37: =Translation!A8 -> Power supply
B41: =Translation!A12 -> Quality standards
P54: =IF(Berechnung!C78=999,AL54,"") ->  | AA54: =IF(Berechnung!D78=999,AL54,"") ->  | AL54: IMT/AD v1.01
I58: =IF(Berechnung!#REF!=0,"",Translation!#REF!) ->  | N58: =Berechnung!$C$98 -> 0 | T58: =IF(Berechnung!#REF!=0,"",Translation!#REF!) ->  | Y58: =Berechnung!$D$98 -> 0 | AE58: =IF(Berechnung!$E$100=0,"",Translation!#REF!) ->  | AJ58: =Berechnung!$E$102 -> 0
C61: =#REF! ->  | I61: =IF(Berechnung!#REF!=0,"",Translation!#REF!) ->  | N61: =IF(Berechnung!#REF!=0,"",FIXED(Berechnung!$C$139,0)&" €") ->  | T61: =IF(Berechnung!#REF!=0,"",Translation!#REF!) ->  | Y61: =IF(Berechnung!#REF!=0,"",FIXED(Berechnung!$D$139,0)&" €") ->  | AE61: =IF(Berechnung!$E$100=0,"",Translation!#REF!) ->  | AJ61: =IF(Berechnung!$E$100=0,"",FIXED(Berechnung!$E$139,0)&" €") -> 
I64: =IF(Berechnung!#REF!=0,"",Translation!#REF!) ->  | N64: =IF(Berechnung!#REF!=0,"",FIXED(Berechnung!$C$138,0)&" €") ->  | T64: =IF(Berechnung!#REF!=0,"",Translation!#REF!) ->  | Y64: =IF(Berechnung!#REF!=0,"",FIXED(Berechnung!$D$138,0)&" €") ->  | AE64: =IF(Berechnung!$E$100=0,"",Translation!#REF!) ->  | AJ64: =IF(Berechnung!$E$100=0,"",FIXED(Berechnung!$E$138,0)&" €") -> 
C65: =#REF! -> 
C69: =B41 -> Quality standards | I69: =IF(Berechnung!#REF!=0,"",Translation!#REF!) ->  | N69: =IF(Berechnung!#REF!=0,"",FIXED(Berechnung!$C$140,0)&" "&Translation!$A$30) ->  | T69: =IF(Berechnung!#REF!=0,"",Translation!#REF!) ->  | Y69: =IF(Berechnung!#REF!=0,"",FIXED(Berechnung!$D$140,0)&" "&Translation!$A$30) ->  | AE69: =IF(Berechnung!$E$100=0,"",Translation!#REF!) ->  | AJ69: =IF(Berechnung!$E$100=0,"",FIXED(Berechnung!$E$140,0)&" "&Translation!$A$30) -> 
I71: =IF(Berechnung!#REF!=0,"",Translation!$A$23) ->  | N71: =IF(Berechnung!#REF!=0,"",FIXED(Berechnung!$C$136/1000,1)&" "&Translation!$A$24) ->  | T71: =IF(Berechnung!#REF!=0,"",Translation!$A$23) ->  | Y71: =IF(Berechnung!#REF!=0,"",FIXED(Berechnung!$D$136/1000,1)&" "&Translation!$A$24) ->  | AE71: =IF(Berechnung!$E$100=0,"",Translation!$A$23) ->  | AJ71: =IF(Berechnung!$E$100=0,"",FIXED(Berechnung!$E$136/1000,1)&" "&Translation!$A$24) -> 
C73: =B29 -> 0 | I73: =IF(Berechnung!#REF!=0,"",Translation!$A$22) ->  | N73: =IF(Berechnung!#REF!=0,"",FIXED(Berechnung!$C$137,0)&" "&Translation!$A$25) ->  | T73: =IF(Berechnung!#REF!=0,"",Translation!$A$22) ->  | Y73: =IF(Berechnung!#REF!=0,"",FIXED(Berechnung!$D$137,0)&" "&Translation!$A$25) ->  | AE73: =IF(Berechnung!$E$100=0,"",Translation!$A$22) ->  | AJ73: =IF(Berechnung!$E$100=0,"",FIXED(Berechnung!$E$137,0)&" "&Translation!$A$25) -> 
I75: =IF(Berechnung!#REF!=0,"",Translation!$A$26) ->  | N75: =IF(Berechnung!#REF!=0,"",FIXED(Berechnung!$C$141,0)&" "&Translation!$A$27) ->  | T75: =IF(Berechnung!#REF!=0,"",Translation!$A$26) ->  | Y75: =IF(Berechnung!#REF!=0,"",FIXED(Berechnung!$D$141,0)&" "&Translation!$A$27) ->  | AE75: =IF(Berechnung!$E$100=0,"",Translation!$A$26) ->  | AJ75: =IF(Berechnung!$E$100=0,"",FIXED(Berechnung!$E$141,0)&" "&Translation!$A$27) -> 
M78: =IF(Berechnung!$C$97=FALSE,"",HYPERLINK(Berechnung!$C$99,Translation!$A$10)) ->  | X78: =IF(Berechnung!$D$97=FALSE,"",HYPERLINK(Berechnung!$D$99,Translation!$A$10)) ->  | AI78: =IF(Berechnung!$E$99=FALSE,"",HYPERLINK(Berechnung!$E$103,Translation!$A$10)) -> 
AL82: IMT/IH v1.07
C88: =#REF! -> 
C92: =#REF! -> 
C96: =B41 -> Quality standards | I96: =IF(Berechnung!#REF!="","",VLOOKUP(Berechnung!#REF!,#REF!,4,FALSE)) ->  | L96: =IF(Berechnung!$C$111="","",VLOOKUP(Berechnung!$C$111,#REF!,4,FALSE)) ->  | O96: =IF(Berechnung!$C$112="","",VLOOKUP(Berechnung!$C$112,#REF!,4,FALSE)) ->  | T96: =IF(Berechnung!#REF!="","",VLOOKUP(Berechnung!#REF!,#REF!,4,FALSE)) ->  | W96: =IF(Berechnung!$D$111="","",VLOOKUP(Berechnung!$D$111,#REF!,4,FALSE)) ->  | Z96: =IF(Berechnung!$D$112="","",VLOOKUP(Berechnung!$D$112,#REF!,4,FALSE)) ->  | AE96: =IF(Berechnung!#REF!="","",VLOOKUP(Berechnung!#REF!,#REF!,4,FALSE)) ->  | AH96: =IF(Berechnung!$E$111="","",VLOOKUP(Berechnung!$E$111,#REF!,4,FALSE)) ->  | AK96: =IF(Berechnung!$E$112="","",VLOOKUP(Berechnung!$E$112,#REF!,4,FALSE)) -> 
I98: =IF(Berechnung!#REF!="","",VLOOKUP(Berechnung!#REF!,#REF!,5,FALSE)) ->  | L98: =IF(Berechnung!$C$111="","",VLOOKUP(Berechnung!$C$111,#REF!,5,FALSE)) ->  | O98: =IF(Berechnung!$C$112="","",VLOOKUP(Berechnung!$C$112,#REF!,5,FALSE)) ->  | T98: =IF(Berechnung!#REF!="","",VLOOKUP(Berechnung!#REF!,#REF!,5,FALSE)) ->  | W98: =IF(Berechnung!$D$111="","",VLOOKUP(Berechnung!$D$111,#REF!,5,FALSE)) ->  | Z98: =IF(Berechnung!$D$112="","",VLOOKUP(Berechnung!$D$112,#REF!,5,FALSE)) ->  | AE98: =IF(Berechnung!#REF!="","",VLOOKUP(Berechnung!#REF!,#REF!,5,FALSE)) ->  | AH98: =IF(Berechnung!$E$111="","",VLOOKUP(Berechnung!$E$111,#REF!,5,FALSE)) ->  | AK98: =IF(Berechnung!$E$112="","",VLOOKUP(Berechnung!$E$112,#REF!,5,FALSE)) -> 
C100: =B29 -> 0 | I100: =IF(Berechnung!#REF!="","",Translation!$A$31&" "&Berechnung!#REF!) ->  | L100: =IF(Berechnung!$C$111="","",Translation!$A$31&" "&Berechnung!$C$111) ->  | O100: =IF(Berechnung!$C$112="","",Translation!$A$31&" "&Berechnung!$C$112) ->  | T100: =IF(Berechnung!#REF!="","",Translation!$A$31&" "&Berechnung!#REF!) ->  | W100: =IF(Berechnung!$D$111="","",Translation!$A$31&" "&Berechnung!$D$111) ->  | Z100: =IF(Berechnung!$D$112="","",Translation!$A$31&" "&Berechnung!$D$112) ->  | AE100: =IF(Berechnung!#REF!="","",Translation!$A$31&" "&Berechnung!#REF!) ->  | AH100: =IF(Berechnung!$E$111="","",Translation!$A$31&" "&Berechnung!$E$111) ->  | AK100: =IF(Berechnung!$E$112="","",Translation!$A$31&" "&Berechnung!$E$112) -> 
I102: =IF(Berechnung!#REF!="","",VLOOKUP(Berechnung!#REF!,#REF!,3,FALSE)) ->  | L102: =IF(Berechnung!$C$111="","",VLOOKUP(Berechnung!$C$111,#REF!,3,FALSE)) ->  | O102: =IF(Berechnung!$C$112="","",VLOOKUP(Berechnung!$C$112,#REF!,3,FALSE)) ->  | T102: =IF(Berechnung!#REF!="","",VLOOKUP(Berechnung!#REF!,#REF!,3,FALSE)) ->  | W102: =IF(Berechnung!$D$111="","",VLOOKUP(Berechnung!$D$111,#REF!,3,FALSE)) ->  | Z102: =IF(Berechnung!$D$112="","",VLOOKUP(Berechnung!$D$112,#REF!,3,FALSE)) ->  | AE102: =IF(Berechnung!#REF!="","",VLOOKUP(Berechnung!#REF!,#REF!,3,FALSE)) ->  | AH102: =IF(Berechnung!$E$111="","",VLOOKUP(Berechnung!$E$111,#REF!,3,FALSE)) ->  | AK102: =IF(Berechnung!$E$112="","",VLOOKUP(Berechnung!$E$112,#REF!,3,FALSE)) -> 
M105: =IF(Berechnung!$C$97=FALSE,"",HYPERLINK(Berechnung!$C$101,Translation!$A$11)) ->  | X105: =IF(Berechnung!$D$97=FALSE,"",HYPERLINK(Berechnung!$D$101,Translation!$A$11)) ->  | AI105: =IF(Berechnung!$E$99=FALSE,"",HYPERLINK(Berechnung!$E$105,Translation!$A$11)) -> 
AL109: IMT/IH v1.00

Sheet Berechnung (hidden)
A1: VBA-Code
A2: Comboboxen
A3: Wassereintrittstemperatur | C3: Personenzahl | E3: Auswahl Entnahmestellen | G3: Bauausführung | I3: Elektrischer Anschluss | M3: El. Anschluss Asien | S3: Ansicht | U3: Durchluss | W3: Region | Y3: Sprachauswahl | AA3: Wasseraustrittstemperatur
A5: 30°C | B5: =VLOOKUP(A5,A6:B50,2,FALSE) -> 30 | C5: 1 Person | D5: =VLOOKUP(C5,C6:D50,2,FALSE) -> 1 | E5: Zapfstelle | F5: =IF(AND(F8=TRUE,F12=1),1,IF(F7=TRUE,2,3)) -> 2 | G5: Segment A | H5: =VLOOKUP(G5,G6:H50,2,FALSE) -> 1 | I5: 220 V | J5: =VLOOKUP(I5,I7:J50,2,FALSE) -> 220 | K5: =VLOOKUP(I5,I7:K50,3,FALSE) -> 1 | T5: 2 | U5: 1 l/min | V5: =VLOOKUP(U5,U7:V50,2,FALSE) -> 1 | W5: Asien | X5: =VLOOKUP(W5,W6:X50,2,FALSE) -> 1 | Y5: 2 | Z5: =VLOOKUP(Y5,Y6:Z50,2,FALSE) -> | English | AA5: 50°C | AB5: =VLOOKUP(AA5,AA7:AB26,2,FALSE) -> 50
A7: 10°C | B7: 10 | C7: ="1 "&Translation!A13 -> 1 Person | D7: 1 | E7: =Translation!$A$15 -> Bath tub | F7: TRUE | G7: Segment A | H7: 1 | I7: =IF($X$5=1,M7,"") -> 220 V | J7: =IF($X$5=1,N7,"") -> 220 | K7: 1 | M7: 220 V | N7: 220 | S7: Technische Daten | T7: 2 | U7: 1 l/min | V7: 1 | W7: Asien | X7: 1 | Y7: 1 | Z7: | Deutsch | AA7: 31°C | AB7: 31
A8: 11°C | B8: 11 | C8: ="2 "&Translation!A14 -> 2 Persons | D8: 2 | E8: =Translation!$A$16 -> Shower | F8: FALSE | G8: Segment B | H8: 2 | I8: =IF($X$5=1,M8,"") -> 230 V | J8: =IF($X$5=1,N8,"") -> 230 | K8: =IF(J8=0,"",K7+1) -> 2 | M8: 230 V | N8: 230 | S8: Features | T8: 1 | U8: 2 l/min | V8: 2 | W8: South Africa | X8: 2 | Y8: 2 | Z8: | English | AA8: 32°C | AB8: 32
A9: 12°C | B9: 12 | C9: ="3 "&Translation!A14 -> 3 Persons | D9: 3 | E9: =Translation!$A$17 -> Kitchen sink | F9: FALSE | G9: Segment C | H9: 3 | I9: 240 V | J9: 240 | K9: =IF(J9=0,"",K8+1) -> 3 | M9: 240 V | N9: 240 | S9: Verbrauch | T9: 3 | U9: 3 l/min | V9: 3 | W9: Middle East | X9: 3 | AA9: 33°C | AB9: 33
A10: 13°C | B10: 13 | C10: ="4 "&Translation!A14 -> 4 Persons | D10: 4 | E10: =Translation!$A$18 -> Handwash sink | F10: FALSE | I10: 0 | J10: 0 | U10: 4 l/min | V10: 4 | AA10: 34°C | AB10: 34
A11: 14°C | B11: 14 | C11: ="5 "&Translation!A14 -> 5 Persons | D11: 5 | I11: 0 | J11: 0 | U11: 5 l/min | V11: 5 | AA11: 35°C | AB11: 35
A12: 15°C | B12: 15 | C12: ="6 "&Translation!A14 -> 6 Persons | D12: 6 | E12: Anzahl Entnahmestelle | F12: =COUNTIF(F7:F10,TRUE) -> 1 | I12: 0 | J12: 0 | U12: 6 l/min | V12: 6 | AA12: 36°C | AB12: 36
A13: 16°C | B13: 16 | I13: 0 | J13: 0 | U13: 7 l/min | V13: 7 | AA13: 37°C | AB13: 37
A14: 17°C | B14: 17 | I14: 0 | J14: 0 | U14: 8 l/min | V14: 8 | Y14: Übersetzungen | AA14: 38°C | AB14: 38
A15: 18°C | B15: 18 | I15: 0 | J15: 0 | U15: 9 l/min | V15: 9 | Y15: Standardwerte | Z15: =Translation!A28 -> Your modifications get lost. Continue? | AA15: 39°C | AB15: 39
A16: 19°C | B16: 19 | I16: 0 | J16: 0 | U16: 10 l/min | V16: 10 | Y16: Standardwerte | Z16: =Translation!A29 -> Standard values | AA16: 40°C | AB16: 40
A17: 20°C | B17: 20 | I17: 0 | J17: 0 | U17: 11 l/min | V17: 11 | AA17: 41°C | AB17: 41
A18: 21°C | B18: 21 | I18: 0 | J18: 0 | U18: 12 l/min | V18: 12 | AA18: 42°C | AB18: 42
A19: 22°C | B19: 22 | I19: 0 | J19: 0 | AA19: 43°C | AB19: 43
A20: 23°C | B20: 23 | I20: 0 | J20: 0 | AA20: 44°C | AB20: 44
A21: 24°C | B21: 24 | I21: 0 | J21: 0 | AA21: 45°C | AB21: 45
A22: 25°C | B22: 25 | I22: 0 | J22: 0 | AA22: 46°C | AB22: 46
A23: 26°C | B23: 26 | I23: 0 | J23: 0 | AA23: 47°C | AB23: 47
A24: 27°C | B24: 27 | I24: 0 | J24: 0 | AA24: 48°C | AB24: 48
A25: 28°C | B25: 28 | I25: 0 | J25: 0 | AA25: 49°C | AB25: 49
A26: 29°C | B26: 29 | I26: 0 | J26: 0 | AA26: 50°C | AB26: 50
A27: 30°C | B27: 30 | I27: 0 | J27: 0
I28: 0 | J28: 0
I29: 0 | J29: 0
I30: 0 | J30: 0
I31: 0 | J31: 0
I32: 0 | J32: 0
I33: 0 | J33: 0 | AA33: 31°C
I34: 0 | J34: 0 | AA34: 32°C
I35: 0 | J35: 0
I36: 0 | J36: 0
I37: 0 | J37: 0
I38: 0 | J38: 0
I39: 0 | J39: 0
I40: 0 | J40: 0
I41: 0 | J41: 0
I42: 0 | J42: 0
I43: 0 | J43: 0
I44: 0 | J44: 0
I45: 0 | J45: 0
I46: 0 | J46: 0
I47: 0
I48: 0
I49: 0
I50: =IF($X$5=1,M50,"") -> 0
A54: Berechnung Energie- und Wasserkosten
A55: Entnahmestelle | D55: Berechnung Warmwassermenge | L55: Temperatur | N55: Erf. Leistung | O55: Endenergiebedarf | S55: CO2
A56: Typ | C56: gewählt ? | D56: Durchfluss | E56: Dauer | F56: Zapfmenge | G56: Frequenz | H56: Personen | I56: Zapfmenge | J56: Nutzungsdauer | K56: Zapfmenge | L56: Kaltwasser | M56: Zapfung | O56: Verteilverluste | P56: pro Zapfung | Q56: Pro Tag | R56: Pro Jahr | S56: Emissionen
A57: - | C57: - | D57: l/min | E57: min/Zapfung | F57: Liter/Zapfung | G57: Zapfung/Tag | H57: Anzahl | I57: Liter/Tag | J57: Wochen/Jahr | K57: Liter/Jahr | L57: °C | M57: °C | N57: kW | O57: % | P57: kWh/Zapfung | Q57: kWh/d | R57: kWh/a
A58: =E7 -> Bath tub | C58: =IF(F7=FALSE,0,1) -> 1 | D58: =V5 -> 1 | E58: =Einstellungen!D19 -> 10 | F58: =D58*E58 -> 10 | G58: =Einstellungen!D21/7 -> 0.1428571429 | H58: =D5 -> 1 | I58: =F58*G58*H58 -> 1.428571429 | J58: =Einstellungen!$D$7 -> 49 | K58: =I58*J58*7 -> 490 | L58: =B5 -> 30 | M58: =AB5 -> 50 | N58: =C58*(1.163*6/100*D58*(M58-L58)) -> 1.3956 | O58: =IF(COUNTIF(F7:F10,TRUE)>1,Einstellungen!D11,Einstellungen!D9) -> 2 | P58: =F58*1.163*(M58-L58)/(1000*(1-O58/100)) -> 0.2373469388 | Q58: =I58*1.163*(M58-L58)/(1000*(1-O58/100)) -> 0.03390670554 | R58: =K58*1.163*(M58-L58)/(1000*(1-O58/100)) -> 11.63 | S58: =R58*Einstellungen!$D$13/100 -> 73.6179
A59: =E8 -> Shower | C59: =IF(F8=FALSE,0,1) -> 0 | D59: =D58 -> 1 | E59: =Einstellungen!H21 -> 6 | F59: 6 | G59: =Einstellungen!H19/7 -> 0.5714285714 | H59: =D5 -> 1 | I59: 3.428571429 | J59: =J58 -> 49 | K59: 1176 | L59: =L58 -> 30 | M59: =AB5 -> 50 | N59: =C59*(1.163*6/100*D59*(M59-L59)) -> 0 | O59: =$O$58 -> 2 | P59: =F59*1.163*(M59-L59)/(1000*(1-O59/100)) -> 0.1424081633 | Q59: =I59*1.163*(M59-L59)/(1000*(1-O59/100)) -> 0.08137609329 | R59: =K59*1.163*(M59-L59)/(1000*(1-O59/100)) -> 27.912 | S59: =R59*Einstellungen!$D$13/100 -> 176.68296
A60: =E9 -> Kitchen sink | C60: 0 | D60: =D59 -> 1 | E60: =Einstellungen!D26 -> 1 | F60: 1 | G60: =Einstellungen!H29 -> 2 | H60: 1 | I60: 2 | J60: =J58 -> 49 | K60: 686 | L60: =L58 -> 30 | M60: =AB5 -> 50 | N60: 0 | O60: =$O$58 -> 2 | P60: =F60*1.163*(M60-L60)/(1000*(1-O60/100)) -> 0.02373469388 | Q60: =I60*1.163*(M60-L60)/(1000*(1-O60/100)) -> 0.04746938776 | R60: =K60*1.163*(M60-L60)/(1000*(1-O60/100)) -> 16.282 | S60: =R60*Einstellungen!$D$13/100 -> 103.06506
A61: Handwash sink | C61: 0 | D61: 1 | E61: =Einstellungen!H26 -> 1 | F61: =D61*E61 -> 1 | G61: =Einstellungen!D29 -> 1.5 | H61: =D5 -> 1 | I61: 1.5 | J61: =J58 -> 49 | K61: 514.5 | L61: =L58 -> 30 | M61: =AB5 -> 50 | N61: 0 | O61: =$O$58 -> 2 | P61: =F61*1.163*(M61-L61)/(1000*(1-O61/100)) -> 0.02373469388 | Q61: =I61*1.163*(M61-L61)/(1000*(1-O61/100)) -> 0.03560204082 | R61: =K61*1.163*(M61-L61)/(1000*(1-O61/100)) -> 12.2115 | S61: =R61*Einstellungen!$D$13/100 -> 77.298795
N70: MAX
A71: Summe | F71: =SUMPRODUCT($C$58:$C$70,F58:F70) -> 10 | I71: =SUMPRODUCT($C$58:$C$70,I58:I70) -> 1.428571429 | K71: =SUMPRODUCT($C$58:$C$70,K58:K70) -> 490 | N71: =IF(C58=1,MAX(MAX(N58:N70),8),(MAX(N58:N70))) -> 8 | P71: =SUMPRODUCT($C$58:$C$70,P58:P70) -> 0.2373469388 | Q71: =SUMPRODUCT($C$58:$C$70,Q58:Q70) -> 0.03390670554 | R71: =SUMPRODUCT($C$58:$C$70,R58:R70) -> 11.63 | S71: =R71*Einstellungen!$D$13/100 -> 73.6179
A77: Slots | B77: Slot 1 | C77: Slot 2 | D77: Slot 3
A78: Index | B78: =SMALL(DatenGeraete!B3:B56,1) -> 35 | C78: =SMALL(DatenGeraete!B3:B56,2) -> 36 | D78: =SMALL(DatenGeraete!B3:B56,3) -> 39
A79: ArtNr. | B79: =VLOOKUP(B78,DatenGeraete!$C$3:$AY$99,2,FALSE) -> 73716 | C79: =VLOOKUP(C78,DatenGeraete!$C$3:$AY$99,2,FALSE) -> 73481 | D79: =VLOOKUP(D78,DatenGeraete!$C$3:$AY$99,2,FALSE) -> 224201
A80: AusgabeArtNr. | B80: ="ArtNr."&" "&B79 -> ArtNr. 73716 | C80: ="ArtNr."&" "&C79 -> ArtNr. 73481 | D80: ArtNr. 224201
A81: Bezeichnung 2 | B81: =VLOOKUP(B78,DatenGeraete!$C$3:$AY$99,4,FALSE) -> Multipoint | C81: =VLOOKUP(C78,DatenGeraete!$C$3:$AY$99,4,FALSE) -> Multipoint | D81: =VLOOKUP(D78,DatenGeraete!$C$3:$AY$99,4,FALSE) -> Multipoint
A82: Bezeichnung 1 | B82: =VLOOKUP(B78,DatenGeraete!$C$3:$AY$99,3,FALSE) -> DHA 4/8 L | C82: =VLOOKUP(C78,DatenGeraete!$C$3:$AY$99,3,FALSE) -> DHC 8 | D82: =VLOOKUP(D78,DatenGeraete!$C$3:$AY$99,3,FALSE) -> DHC-E 8/10
A83: Bild anzeigen | B83: ="BilderGeraete!E"&B78+2 -> BilderGeraete!E37 | C83: ="BilderGeraete!E"&C78+2 -> BilderGeraete!E38 | D83: ="BilderGeraete!E"&D78+2 -> BilderGeraete!E41
A84: Leistung Gerät | B84: =VLOOKUP(B78,DatenGeraete!$C$3:$AY$99,25,FALSE) &" kW" -> 8 kW | C84: =VLOOKUP(C78,DatenGeraete!$C$3:$AY$99,25,FALSE) &" kW" -> 8 kW | D84: =VLOOKUP(D78,DatenGeraete!$C$3:$AY$99,25,FALSE) &" kW" -> 8,1 kW
A85: PIC-Nummer Link | B85: =VLOOKUP(B78,DatenGeraete!$C$3:$AY$96,30,FALSE) -> PIC00002247-00.jpg | C85: =VLOOKUP(C78,DatenGeraete!$C$3:$AY$96,30,FALSE) -> PIC00002247-00.jpg | D85: =VLOOKUP(D78,DatenGeraete!$C$3:$AY$96,30,FALSE) -> PIC00002100-00.jpg
A86: Datenblatt
A87: Bulletpoint 1 | B87: =VLOOKUP($B$78,DatenGeraete!$C$3:$AY$99,34,FALSE) -> Hydraulically controlled | C87: =VLOOKUP($C$78,DatenGeraete!$C$3:$AY$99,34,FALSE) -> Hydraulically controlled | D87: =VLOOKUP($D$78,DatenGeraete!$C$3:$AY$99,34,FALSE) -> Simple and secure operation
A88: Bulletpoint 2 | B88: =VLOOKUP($B$78,DatenGeraete!$C$3:$AY$99,35,FALSE) -> Metal water connections | C88: =VLOOKUP($C$78,DatenGeraete!$C$3:$AY$99,35,FALSE) -> Metal water connections | D88: =VLOOKUP($D$78,DatenGeraete!$C$3:$AY$99,35,FALSE) -> Quick and easy installation
A89: Bulletpoint 3 | B89: =VLOOKUP($B$78,DatenGeraete!$C$3:$AY$99,36,FALSE) -> Power cable with safety plug | C89: =VLOOKUP($C$78,DatenGeraete!$C$3:$AY$99,36,FALSE) -> Power cable with safety plug | D89: =VLOOKUP($D$78,DatenGeraete!$C$3:$AY$99,36,FALSE) -> Works even with low water pressure
A90: Bulletpoint 4 | B90: =VLOOKUP($B$78,DatenGeraete!$C$3:$AY$99,37,FALSE) -> Tubular heater system | C90: =VLOOKUP($C$78,DatenGeraete!$C$3:$AY$99,37,FALSE) -> Tubular heater system | D90: =VLOOKUP($D$78,DatenGeraete!$C$3:$AY$99,37,FALSE) -> Use as a mains pressure appliance for several draw-off points or a shower
A91: Bulletpoint 5 | B91: =VLOOKUP($B$78,DatenGeraete!$C$3:$AY$99,38,FALSE) ->  | C91: =VLOOKUP($C$78,DatenGeraete!$C$3:$AY$99,38,FALSE) ->  | D91: =VLOOKUP($D$78,DatenGeraete!$C$3:$AY$99,38,FALSE) -> EMC compliant
A92: Absicherung | B92: =VLOOKUP(B78,DatenGeraete!$C$3:$AY$99,29,FALSE)&" A" -> 40 A | C92: =VLOOKUP(C78,DatenGeraete!$C$3:$AY$99,29,FALSE)&" A" -> 40 A | D92: =VLOOKUP(D78,DatenGeraete!$C$3:$AY$99,29,FALSE)&" A" -> 50 A
A93: Kabeldurchmesser | B93: =VLOOKUP(B78,DatenGeraete!$C$3:$AY$99,28,FALSE)& " mm²" -> 10 mm² | C93: =VLOOKUP(C78,DatenGeraete!$C$3:$AY$99,28,FALSE)& " mm²" -> 10 mm² | D93: =VLOOKUP(D78,DatenGeraete!$C$3:$AY$99,28,FALSE)& " mm²" -> 16 mm²
A102: Ausgabe Leistung | B102: =ROUND(N71,2)&" kW" -> 8 kW | C102: =ROUND(N71,2)&" kW" -> 8 kW | D102: =ROUND(N71,2)&" kW" -> 8 kW
A104: Ausgabe Energiebedarf | B104: =ROUND(R71,2)& " kWh/a" -> 11,63 kWh/a | C104: =ROUND(R71,2)& " kWh/a" -> 11,63 kWh/a | D104: =ROUND(R71,2)& " kWh/a" -> 11,63 kWh/a
A105: Ausgabe Warmwasser | B105: =ROUND(K71/1000,2)&" m³/a" -> 0,49 m³/a | C105: =ROUND(K71/1000,2)&" m³/a" -> 0,49 m³/a | D105: =ROUND(K71/1000,2)&" m³/a" -> 0,49 m³/a
A106: Ausgabe CO2Emisssionen | B106: =ROUND(S71/1000,2)&" kg/a" -> 0,07 kg/a | C106: =ROUND(S71/1000,2)&" kg/a" -> 0,07 kg/a | D106: =ROUND(S71/1000,2)&" kg/a" -> 0,07 kg/a
A109: email | B109: =Translation!A56 -> Error warm water Navigator Report
A110: Email Beschreibung | B110: =Translation!A57 -> Error Description
A112: VBA Verweise
A113: VBA Verweis 1 | B113: {000204EF-0000-0000-C000-000000000046} | C113: 4 | D113: 0 | E113: Visual Basic for Application
A114: VBA Verweis 2 | B114: {00020813-0000-0000-C000-000000000046} | C114: 1 | D114: 6 | E114: Microsoft Excel 12.0 Object Library
A115: VBA Verweis 3 | B115: {00020430-0000-0000-C000-000000000046} | C115: 2 | D115: 0 | E115: OLE Automation
A116: VBA Verweis 4 | B116: {2DF8D04C-5BFA-101B-BDE5-00AA0044DE52} | C116: 2 | D116: 4 | E116: Microsoft Forms 2.0 Object Library
A117: VBA Verweis 5 | B117: {0D452EE1-E08F-101A-852E-02608C4D0BB4} | C117: 2 | D117: 0 | E117: Microsoft Office 12.0 Object Library
A118: Vba Verweis 6 | B118: {420B2830-E718-11CF-893D-00A0C9054228} | C118: 1 | D118: 0 | E118: Microsoft Scripting Runtime

Sheet Einstellungen
A1: 751953
B2: =Translation!A32 -> Advanced settings
B5: > | C5: =Translation!A33 -> Standard settings
C7: =Translation!A34 -> Useable time of DHW production | D7: 49
C9: =Translation!A35 -> Dispersion losses (individual supply) | D9: 2
C11: =Translation!A36 -> Dispersion losses (collective provision) | D11: 10
C13: =Translation!A37 -> CO2-Emission electricity [g/kWh] | D13: 633
B15: > | C15: =Translation!A15 -> Bath tub | F15: > | G15: =Translation!A16 -> Shower
C19: =Translation!A41 -> Time of tapping in minutes | D19: 10 | G19: =Translation!A46 -> Showers per week (per person) | H19: 4
C21: =Translation!A40 -> How often do you have a bath per week? | D21: 1 | G21: =Translation!A47 -> Average shower time in minutes | H21: 6
B23: > | C23: =Translation!A17 -> Kitchen sink | F23: > | G23: =Translation!A18 -> Handwash sink
C26: =Translation!A41 -> Time of tapping in minutes | D26: 1 | G26: =Translation!A41 -> Time of tapping in minutes | H26: 1
C29: =Translation!A43 -> Frequency per day | D29: 1.5 | G29: =Translation!A44 -> Frequency per day (per person) | H29: 2

Sheet DatenGeraete (hidden)
A1: Empfehlung | B1: Bezeichnung Gerät | H1: Verwendung | N1: Segment | U1: Leistung | AD1: KabelØ | AE1: Absicherung | AF1: Produktbilder | AI1: Datenblatt | AJ1: Feautures | AO1: Region | AY1: Regional verfügbar?
A2: Geht das Gerät? | B2: Index | D2: ArtNr. | E2: Bezeichnung 1 | F2: Bezeichnung 2 | G2: Dummy | H2: Dusche = 1 | I2: Badewanne = 2 | J2: Küche/HandWB = 3 | K2: Dummies | M2: =Berechnung!F5 -> 2 | N2: Segment A = 1 | O2: Segment B = 2 | P2: Segment C = 3 | Q2: Dummies | T2: =Berechnung!H5 -> 1 | U2: 220 V = 1 | V2: 230 V = 2 | W2: 240 V = 3 | X2: Dummies | AA2: =Berechnung!K5 -> 1 | AB2: =Berechnung!N71 -> 8 | AC2: =INDEX(AA$3:AA$1048576,MATCH(TRUE,AB$3:AB$1048576,0))+0.5 -> 8.5 | AD2: [mm²] | AE2: [A] | AF2: Pic.Nr | AG2: Pic.Adresse | AH2: Link | AI2: - | AJ2: BulletPoint 1 | AK2: BulletPoint 2 | AL2: BulletPoint 3 | AM2: BulletPoint 5 | AN2: BulletPoint 6 | AO2: Asia = 1 | AP2: S.Africa = 2 | AQ2: Middle East = 3 | AR2: Dummies | AY2: =Berechnung!X5 -> 1
A3: =IF(AND(M3=TRUE,T3=TRUE,AC3=TRUE,AY3=TRUE),TRUE,FALSE) -> FALSE | B3: =IF(A3=TRUE,C3,999) -> 999 | C3: 1 | D3: --- | E3: DJ 30 E - 2 | F3: Shower Unit | H3: TRUE | I3: FALSE | J3: FALSE | M3: =IF($M$2=1,H3,IF($M$2=2,I3,J3)) -> FALSE | N3: TRUE | O3: TRUE | P3: TRUE | T3: =IF($T$2=1,N3,IF($T$2=2,O3,P3)) -> TRUE | U3: 3 | V3: 3.3 | W3: 3.6 | AA3: =IF($AA$2=1,U3,IF($AA$2=2,V3,W3)) -> 3 | AB3: =IF(OR(M3=FALSE,T3=FALSE),FALSE,IF(AA3>=$AB$2,TRUE,FALSE)) -> FALSE | AC3: =IF(AB3=TRUE,IF(AA3>$AC$2,FALSE,TRUE)) -> FALSE | AD3: 1.5 | AE3: 16 | AF3: =RIGHT(AG3,LEN(AG3)-44) -> 6400879J30E-2-ShowerHead.jpg | AG3: http://www.stiebeleltronasia.com/productimg/6400879J30E-2-ShowerHead.jpg | AH3: =IF(AF3="---","",HYPERLINK(AG3,UPPER(RIGHT(AG3,3)))) -> JPG | AJ3: =Translation!A60 -> The worlds first instant hybrid water heater | AK3: =Translation!A77 -> Up to 40% of water and energy saving | AL3: =Translation!A92 -> Patented Aerojet for saving water and electricity | AM3: =Translation!A106 -> Exact & easy temperature control | AN3: =Translation!A121 -> Designed and manufactured according to CB standard | AO3: TRUE | AP3: TRUE | AQ3: TRUE | AY3: =IF($AY$2=1,AO3,IF($AY$2=2,AP3,AQ3)) -> TRUE
A4: =IF(AND(M4=TRUE,T4=TRUE,AC4=TRUE,AY4=TRUE),TRUE,FALSE) -> FALSE | B4: =IF(A4=TRUE,C4,999) -> 999 | C4: 2 | D4: 231001 | E4: DEM 3 | F4: Multipoint | H4: FALSE | I4: FALSE | J4: TRUE | M4: =IF($M$2=1,H4,IF($M$2=2,I4,J4)) -> FALSE | N4: TRUE | O4: TRUE | P4: FALSE | T4: =IF($T$2=1,N4,IF($T$2=2,O4,P4)) -> TRUE | U4: 3.2 | V4: 3.5 | W4: 3.8 | AA4: =IF($AA$2=1,U4,IF($AA$2=2,V4,W4)) -> 3.2 | AB4: =IF(OR(M4=FALSE,T4=FALSE),FALSE,IF(AA4>=$AB$2,TRUE,FALSE)) -> FALSE | AC4: =IF(AB4=TRUE,IF(AA4>$AC$2,FALSE,TRUE)) -> FALSE | AD4: 1.5 | AE4: 16 | AF4: PIC00002180-00.jpg | AG4: =IF(AF4="---","---","http://www.stiebel-eltron.de/ste_shared/imported/produktbilder/zoom/"&AF4) -> http://www.stiebel-eltron.de/ste_shared/imported/produktbilder/zoom/PIC00002180-00.jpg | AH4: JPG | AJ4: =Translation!A65 -> Electronically controlled mini instantaneous water heater for supplying a basin | AK4: =Translation!A83 -> Constant outlet temperature up to the output limit thanks to electronics | AL4: =Translation!A97 -> Temperature can be selected internally from approx. 30 to 50 °C | AM4: =Translation!A111 -> Flow rate can be selected internally | AN4: =Translation!A126 -> Effective bare wire heating system | AO4: TRUE | AP4: TRUE | AQ4: TRUE | AY4: TRUE
A5: FALSE | B5: 999 | C5: 3 | D5: 220813 | E5: DHM 3 | F5: Multipoint | H5: FALSE | I5: FALSE | J5: TRUE | M5: FALSE | N5: FALSE | O5: TRUE | P5: TRUE | T5: FALSE | U5: 3.2 | V5: 3.4 | W5: 3.8 | AA5: 3.2 | AB5: FALSE | AC5: FALSE | AD5: 1.5 | AE5: 16 | AF5: PIC00001985-00.jpg | AG5: =IF(AF5="---","---","http://www.stiebel-eltron.de/ste_shared/imported/produktbilder/zoom/"&AF5) -> http://www.stiebel-eltron.de/ste_shared/imported/produktbilder/zoom/PIC00001985-00.jpg | AH5: JPG | AJ5: =Translation!A74 -> Hydraulically controlled | AK5: =Translation!A85 -> Short heat-up time | AL5: =Translation!A98 -> Undersink installation | AM5: =Translation!A112 -> Device complete with the wall retainer integrated into the back panel | AN5: =Translation!A129 -> Special perlator with flow rate limiter for m22 (fem.) and m24 (male) | AO5: TRUE | AP5: TRUE | AQ5: TRUE | AY5: TRUE
A6: FALSE | B6: 999 | C6: 4 | D6: 222296 | E6: AQ 35 E - 2 | F6: Shower Unit | H6: TRUE | I6: FALSE | J6: FALSE | M6: FALSE | N6: FALSE | O6: FALSE | P6: TRUE | T6: FALSE | U6: 3.5 | V6: 3.8 | W6: 4.2 | AA6: 3.5 | AB6: FALSE | AC6: FALSE | AD6: 2.5 | AE6: 20 | AF6: =RIGHT(AG6,LEN(AG6)-44) -> 1847168Q35-45E-2ShowerHead.jpg | AG6: http://www.stiebeleltronasia.com/productimg/1847168Q35-45E-2ShowerHead.jpg | AH6: JPG | AJ6: =Translation!A61 -> Step less Temperature Control Knob | AK6: =Translation!A78 -> Anti-scalding with Action Thermostat | AL6: =Translation!A110 -> Works well even in low water pressure areas | AM6: =Translation!A128 -> ELSD protection against Electric Shock | AN6: =Translation!A122 -> Electricity Surge Protection | AO6: TRUE | AP6: TRUE | AQ6: TRUE | AY6: TRUE
A7: FALSE | B7: 999 | C7: 5 | D7: 222290 | E7: IJ 35 E | F7: Shower Unit | H7: TRUE | I7: FALSE | J7: FALSE | M7: FALSE | N7: TRUE | O7: FALSE | P7: FALSE | T7: TRUE | U7: 3.5 | V7: 3.8 | W7: 4.2 | AA7: 3.5 | AB7: FALSE | AC7: FALSE | AD7: 2.5 | AE7: 20 | AF7: =RIGHT(AG7,LEN(AG7)-44) -> 7610596J45EShowerHead.jpg | AG7: http://www.stiebeleltronasia.com/productimg/7610596J45EShowerHead.jpg | AH7: JPG | AJ7: =Translation!A62 -> Luxury design | AK7: =Translation!A79 -> Aero Jet ON/OFF control | AL7: =Translation!A93 -> Anti-scalding with Double Action Thermostat | AM7: =Translation!A128 -> ELSD protection against Electric Shock | AN7: =Translation!A122 -> Electricity Surge Protection | AO7: TRUE | AP7: TRUE | AQ7: TRUE | AY7: TRUE
A8: FALSE | B8: 999 | C8: 6 | D8: 222358 | E8: IL 35 EC | F8: Shower Unit | H8: TRUE | I8: FALSE | J8: FALSE | M8: FALSE | N8: TRUE | O8: FALSE | P8: FALSE | T8: TRUE | U8: 3.5 | V8: 3.8 | W8: 4.2 | AA8: 3.5 | AB8: FALSE | AC8: FALSE | AD8: 2.5 | AE8: 20 | AF8: =RIGHT(AG8,LEN(AG8)-44) -> 8661866L45ECShowerHead.jpg | AG8: http://www.stiebeleltronasia.com/productimg/8661866L45ECShowerHead.jpg | AH8: JPG | AJ8: =Translation!A62 -> Luxury design | AK8: =Translation!A80 -> ELCB protection against Electric Shock | AL8: =Translation!A94 -> Multi color display | AM8: =Translation!A107 -> Exact and quick temperature selection | AN8: =Translation!A123 -> Microprocessor controlled | AO8: TRUE | AP8: TRUE | AQ8: TRUE | AY8: TRUE
A9: FALSE | B9: 999 | C9: 7 | D9: 222283 | E9: IS 35 E - 2 | F9: Shower Unit | H9: TRUE | I9: FALSE | J9: FALSE | M9: FALSE | N9: FALSE | O9: TRUE | P9: FALSE | T9: FALSE | U9: 3.5 | V9: 3.8 | W9: 4.2 | AA9: 3.5 | AB9: FALSE | AC9: FALSE | AD9: 2.5 | AE9: 20 | AF9: =RIGHT(AG9,LEN(AG9)-44) -> 8674561S35-45-60E-2Showerhead.jpg | AG9: http://www.stiebeleltronasia.com/productimg/8674561S35-45-60E-2Showerhead.jpg | AH9: JPG | AJ9: =Translation!A67 -> Chromed Shower Accessories | AK9: =Translation!A93 -> Anti-scalding with Double Action Thermostat | AL9: =Translation!A110 -> Works well even in low water pressure areas | AM9: =Translation!A115 -> Maintenance free copper tank | AN9: =Translation!A128 -> ELSD protection against Electric Shock | AO9: TRUE | AP9: TRUE | AQ9: TRUE | AY9: TRUE
A10: FALSE | B10: 999 | C10: 8 | D10: --- | E10: IP 35 EC | F10: Shower Unit | H10: TRUE | I10: FALSE | J10: FALSE | M10: FALSE | N10: TRUE | O10: FALSE | P10: FALSE | T10: TRUE | U10: 3.5 | V10: 3.8 | W10: 4.2 | AA10: 3.5 | AB10: FALSE | AC10: FALSE | AD10: 2.5 | AE10: 20 | AF10: PICIP35_45EC.jpg | AG10: keine gefunden | AH10: x | AJ10: =Translation!A93 -> Anti-scalding with Double Action Thermostat | AK10: =Translation!A125 -> Chromed shower head in 5 settings | AL10: =Translation!A110 -> Works well even in low water pressure areas | AM10: =Translation!A108 -> Rust-free copper tank | AN10: =Translation!A128 -> ELSD protection against Electric Shock | AO10: TRUE | AP10: TRUE | AQ10: TRUE | AY10: TRUE
A11: FALSE | B11: 999 | C11: 9 | D11: --- | E11: WS 35 E | F11: Shower Unit | H11: TRUE | I11: FALSE | J11: FALSE | M11: FALSE | N11: FALSE | O11: TRUE | P11: FALSE | T11: FALSE | U11: 3.5 | V11: 3.8 | W11: 4.2 | AA11: 3.5 | AB11: FALSE | AC11: FALSE | AD11: 2.5 | AE11: 20 | AF11: =RIGHT(AG11,LEN(AG11)-44) -> 1168212S35E+SHOWER.jpg | AG11: http://www.stiebeleltronasia.com/productimg/1168212S35E+SHOWER.jpg | AH11: =IF(AF11="---","",HYPERLINK(AG11,UPPER(RIGHT(AG11,3)))) -> JPG | AJ11: =Translation!A63 -> Lage coloured LCD display | AK11: =Translation!A81 -> ELCB protection against electricity leakage | AL11: =Translation!A95 -> Easy and save to operate | AM11: =Translation!A109 -> 5 in 1 chrome accessories | AN11: =Translation!A124 -> Microcontroller temperature stabilizer | AO11: TRUE | AP11: TRUE | AQ11: TRUE | AY11: TRUE
A12: FALSE | B12: 999 | C12: 10 | D12: 230997 | E12: XG 35 EC | F12: Shower Unit | H12: TRUE | I12: FALSE | J12: FALSE | M12: FALSE | N12: TRUE | O12: FALSE | P12: FALSE | T12: TRUE | U12: 3.5 | V12: 3.8 | W12: 4.2 | AA12: 3.5 | AB12: FALSE | AC12: FALSE | AD12: 2.5 | AE12: 20 | AF12: =RIGHT(AG12,LEN(AG12)-44) -> 7067871G35ECShowerhead.jpg | AG12: http://www.stiebeleltronasia.com/productimg/7067871G35ECShowerhead.jpg | AH12: JPG | AJ12: =Translation!A64 -> Awarded German design | AK12: =Translation!A82 -> Built in Aero Jet | AL12: =Translation!A96 -> Tank made from X-tra Reinforced Polyamide | AM12: =Translation!A110 -> Works well even in low water pressure areas | AN12: =Translation!A125 -> Chromed shower head in 5 settings | AO12: TRUE | AP12: TRUE | AQ12: TRUE | AY12: TRUE
A13: FALSE | B13: 999 | C13: 11 | D13: 231002 | E13: DEM 4 | F13: Multipoint | H13: FALSE | I13: FALSE | J13: TRUE | M13: FALSE | N13: TRUE | O13: TRUE | P13: FALSE | T13: TRUE | U13: 4 | V13: 4.4 | W13: 4.8 | AA13: 4 | AB13: FALSE | AC13: FALSE | AD13: 2.5 | AE13: 20 | AF13: PIC00002180-00.jpg | AG13: =IF(AF13="---","---","http://www.stiebel-eltron.de/ste_shared/imported/produktbilder/zoom/"&AF13) -> http://www.stiebel-eltron.de/ste_shared/imported/produktbilder/zoom/PIC00002180-00.jpg | AH13: JPG | AJ13: =Translation!A65 -> Electronically controlled mini instantaneous water heater for supplying a basin | AK13: =Translation!A83 -> Constant outlet temperature up to the output limit thanks to electronics | AL13: =Translation!A97 -> Temperature can be selected internally from approx. 30 to 50 °C | AM13: =Translation!A111 -> Flow rate can be selected internally | AN13: =Translation!A126 -> Effective bare wire heating system | AO13: TRUE | AP13: TRUE | AQ13: TRUE | AY13: TRUE
A14: FALSE | B14: 999 | C14: 12 | D14: 220814 | E14: DHM 4 | F14: Multipoint | H14: FALSE | I14: FALSE | J14: TRUE | M14: FALSE | N14: FALSE | O14: TRUE | P14: TRUE | T14: FALSE | U14: 4 | V14: 4.4 | W14: 4.8 | AA14: 4 | AB14: FALSE | AC14: FALSE | AD14: 2.5 | AE14: 20 | AF14: PIC00001985-00.jpg | AG14: =IF(AF14="---","---","http://www.stiebel-eltron.de/ste_shared/imported/produktbilder/zoom/"&AF14) -> http://www.stiebel-eltron.de/ste_shared/imported/produktbilder/zoom/PIC00001985-00.jpg | AH14: JPG | AJ14: =Translation!A74 -> Hydraulically controlled | AK14: =Translation!A85 -> Short heat-up time | AL14: =Translation!A98 -> Undersink installation | AM14: =Translation!A112 -> Device complete with the wall retainer integrated into the back panel | AN14: =Translation!A129 -> Special perlator with flow rate limiter for m22 (fem.) and m24 (male) | AO14: TRUE | AP14: TRUE | AQ14: TRUE | AY14: TRUE
A15: FALSE | B15: 999 | C15: 13 | D15: 73715 | E15: DHC 4 | F15: Multipoint | H15: FALSE | I15: FALSE | J15: TRUE | M15: FALSE | N15: TRUE | O15: FALSE | P15: FALSE | T15: TRUE | U15: 4 | V15: 4.4 | W15: 4.8 | AA15: 4 | AB15: FALSE | AC15: FALSE | AD15: 2.5 | AE15: 20 | AF15: PIC00002247-00.jpg | AG15: =IF(AF15="---","---","http://www.stiebel-eltron.de/ste_shared/imported/produktbilder/zoom/"&AF15) -> http://www.stiebel-eltron.de/ste_shared/imported/produktbilder/zoom/PIC00002247-00.jpg | AH15: JPG | AJ15: =Translation!A74 -> Hydraulically controlled | AK15: =Translation!A86 -> Metal water connections | AL15: =Translation!A101 -> Power cable with safety plug | AM15: =Translation!A116 -> Tubular heater system | AN15: ="" ->  | AO15: TRUE | AP15: TRUE | AQ15: TRUE | AY15: TRUE
A16: FALSE | B16: 999 | C16: 14 | D16: 222297 | E16: AQ 45 E - 2 | F16: Shower Unit | H16: TRUE | I16: FALSE | J16: FALSE | M16: FALSE | N16: FALSE | O16: FALSE | P16: TRUE | T16: FALSE | U16: 4.5 | V16: 4.9 | W16: 5.4 | AA16: 4.5 | AB16: FALSE | AC16: FALSE | AD16: 4 | AE16: 25 | AF16: =RIGHT(AG16,LEN(AG16)-44) -> 1847168Q35-45E-2ShowerHead.jpg | AG16: http://www.stiebeleltronasia.com/productimg/1847168Q35-45E-2ShowerHead.jpg | AH16: JPG | AJ16: =Translation!A61 -> Step less Temperature Control Knob | AK16: =Translation!A78 -> Anti-scalding with Action Thermostat | AL16: =Translation!A110 -> Works well even in low water pressure areas | AM16: =Translation!A128 -> ELSD protection against Electric Shock | AN16: =Translation!A122 -> Electricity Surge Protection | AO16: TRUE | AP16: TRUE | AQ16: TRUE | AY16: TRUE
A17: FALSE | B17: 999 | C17: 15 | D17: 222291 | E17: IJ 45 E | F17: Shower Unit | H17: TRUE | I17: FALSE | J17: FALSE | M17: FALSE | N17: TRUE | O17: FALSE | P17: FALSE | T17: TRUE | U17: 4.5 | V17: 4.9 | W17: 5.4 | AA17: 4.5 | AB17: FALSE | AC17: FALSE | AD17: 4 | AE17: 25 | AF17: 7610596J45EShowerHead.jpg | AG17: http://www.stiebeleltronasia.com/productimg/7610596J45EShowerHead.jpg | AH17: JPG | AJ17: =Translation!A62 -> Luxury design | AK17: =Translation!A79 -> Aero Jet ON/OFF control | AL17: =Translation!A93 -> Anti-scalding with Double Action Thermostat | AM17: =Translation!A128 -> ELSD protection against Electric Shock | AN17: =Translation!A122 -> Electricity Surge Protection | AO17: TRUE | AP17: TRUE | AQ17: TRUE | AY17: TRUE
A18: FALSE | B18: 999 | C18: 16 | D18: 222359 | E18: IL 45 EC | F18: Shower Unit | H18: TRUE | I18: FALSE | J18: FALSE | M18: FALSE | N18: TRUE | O18: FALSE | P18: FALSE | T18: TRUE | U18: 4.5 | V18: 4.9 | W18: 5.4 | AA18: 4.5 | AB18: FALSE | AC18: FALSE | AD18: 4 | AE18: 25 | AF18: =RIGHT(AG18,LEN(AG18)-44) -> 8661866L45ECShowerHead.jpg | AG18: http://www.stiebeleltronasia.com/productimg/8661866L45ECShowerHead.jpg | AH18: JPG | AJ18: =Translation!A62 -> Luxury design | AK18: =Translation!A80 -> ELCB protection against Electric Shock | AL18: =Translation!A94 -> Multi color display | AM18: =Translation!A107 -> Exact and quick temperature selection | AN18: =Translation!A123 -> Microprocessor controlled | AO18: TRUE | AP18: TRUE | AQ18: TRUE | AY18: TRUE
A19: FALSE | B19: 999 | C19: 17 | D19: 222284 | E19: IS 45 E - 2 | F19: Shower Unit | H19: TRUE | I19: FALSE | J19: FALSE | M19: FALSE | N19: FALSE | O19: TRUE | P19: FALSE | T19: FALSE | U19: 4.5 | V19: 4.9 | W19: 5.4 | AA19: 4.5 | AB19: FALSE | AC19: FALSE | AD19: 4 | AE19: 25 | AF19: =RIGHT(AG19,LEN(AG19)-44) -> 8674561S35-45-60E-2Showerhead.jpg | AG19: http://www.stiebeleltronasia.com/productimg/8674561S35-45-60E-2Showerhead.jpg | AH19: JPG | AJ19: =Translation!A67 -> Chromed Shower Accessories | AK19: =Translation!A93 -> Anti-scalding with Double Action Thermostat | AL19: =Translation!A110 -> Works well even in low water pressure areas | AM19: =Translation!A115 -> Maintenance free copper tank | AN19: =Translation!A128 -> ELSD protection against Electric Shock | AO19: TRUE | AP19: TRUE | AQ19: TRUE | AY19: TRUE
A20: FALSE | B20: 999 | C20: 18 | D20: --- | E20: IP 45EC | F20: Shower Unit | H20: TRUE | I20: FALSE | J20: FALSE | M20: FALSE | N20: TRUE | O20: FALSE | P20: FALSE | T20: TRUE | U20: 4.5 | V20: 4.9 | W20: 5.4 | AA20: 4.5 | AB20: FALSE | AC20: FALSE | AD20: 4 | AE20: 25 | AF20: PICIP35_45EC.jpg | AG20: keine gefunden | AH20: x | AJ20: =Translation!A93 -> Anti-scalding with Double Action Thermostat | AK20: =Translation!A125 -> Chromed shower head in 5 settings | AL20: =Translation!A110 -> Works well even in low water pressure areas | AM20: =Translation!A108 -> Rust-free copper tank | AN20: =Translation!A128 -> ELSD protection against Electric Shock | AO20: TRUE | AP20: TRUE | AQ20: TRUE | AY20: TRUE
A21: FALSE | B21: 999 | C21: 19 | E21: WS 45 E | F21: Shower Unit | H21: TRUE | I21: FALSE | J21: FALSE | M21: FALSE | N21: FALSE | O21: TRUE | P21: FALSE | T21: FALSE | U21: 4.5 | V21: 4.9 | W21: 5.4 | AA21: 4.5 | AB21: FALSE | AC21: FALSE | AD21: 4 | AE21: 25 | AF21: =RIGHT(AG21,LEN(AG21)-44) -> 4381103S45E+SHOWER.jpg | AG21: http://www.stiebeleltronasia.com/productimg/4381103S45E+SHOWER.jpg | AH21: =IF(AF21="---","",HYPERLINK(AG21,UPPER(RIGHT(AG21,3)))) -> JPG | AJ21: =Translation!A63 -> Lage coloured LCD display | AK21: =Translation!A81 -> ELCB protection against electricity leakage | AL21: =Translation!A95 -> Easy and save to operate | AM21: =Translation!A109 -> 5 in 1 chrome accessories | AN21: =Translation!A124 -> Microcontroller temperature stabilizer | AO21: TRUE | AP21: TRUE | AQ21: TRUE | AY21: TRUE
A22: FALSE | B22: 999 | C22: 20 | D22: 230998 | E22: XG 45 EC | F22: Shower Unit | H22: TRUE | I22: FALSE | J22: FALSE | M22: FALSE | N22: TRUE | O22: FALSE | P22: FALSE | T22: TRUE | U22: 4.5 | V22: 4.9 | W22: 5.4 | AA22: 4.5 | AB22: FALSE | AC22: FALSE | AD22: 4 | AE22: 25 | AF22: =RIGHT(AG22,LEN(AG22)-44) -> 1728515G45ECShowerhead.jpg | AG22: http://www.stiebeleltronasia.com/productimg/1728515G45ECShowerhead.jpg | AH22: =IF(AF22="---","",HYPERLINK(AG22,UPPER(RIGHT(AG22,3)))) -> JPG | AJ22: =Translation!A64 -> Awarded German design | AK22: =Translation!A82 -> Built in Aero Jet | AL22: =Translation!A96 -> Tank made from X-tra Reinforced Polyamide | AM22: =Translation!A110 -> Works well even in low water pressure areas | AN22: =Translation!A125 -> Chromed shower head in 5 settings | AO22: TRUE | AP22: TRUE | AQ22: TRUE | AY22: TRUE
A23: FALSE | B23: 999 | C23: 21 | D23: 231215 | E23: DEM 6 | F23: Multipoint | H23: FALSE | I23: FALSE | J23: TRUE | M23: FALSE | N23: TRUE | O23: FALSE | P23: FALSE | T23: TRUE | U23: 5.2 | V23: 5.7 | W23: 6.2 | AA23: 5.2 | AB23: FALSE | AC23: FALSE | AD23: 6 | AE23: 32 | AF23: PIC00002180-00.jpg | AG23: =IF(AF23="---","---","http://www.stiebel-eltron.de/ste_shared/imported/produktbilder/zoom/"&AF23) -> http://www.stiebel-eltron.de/ste_shared/imported/produktbilder/zoom/PIC00002180-00.jpg | AH23: =IF(AF23="---","",HYPERLINK(AG23,UPPER(RIGHT(AG23,3)))) -> JPG | AJ23: =Translation!A65 -> Electronically controlled mini instantaneous water heater for supplying a basin | AK23: =Translation!A83 -> Constant outlet temperature up to the output limit thanks to electronics | AL23: =Translation!A97 -> Temperature can be selected internally from approx. 30 to 50 °C | AM23: =Translation!A111 -> Flow rate can be selected internally | AN23: =Translation!A126 -> Effective bare wire heating system | AO23: TRUE | AP23: TRUE | AQ23: TRUE | AY23: TRUE
A24: FALSE | B24: 999 | C24: 22 | D24: 185473 | E24: DHM 6 | F24: Multipoint | H24: FALSE | I24: FALSE | J24: TRUE | M24: FALSE | N24: TRUE | O24: TRUE | P24: FALSE | T24: TRUE | U24: 5.2 | V24: 5.7 | W24: 6.2 | AA24: 5.2 | AB24: FALSE | AC24: FALSE | AD24: 6 | AE24: 32 | AF24: PIC00001985-00.jpg | AG24: =IF(AF24="---","---","http://www.stiebel-eltron.de/ste_shared/imported/produktbilder/zoom/"&AF24) -> http://www.stiebel-eltron.de/ste_shared/imported/produktbilder/zoom/PIC00001985-00.jpg | AH24: =IF(AF24="---","",HYPERLINK(AG24,UPPER(RIGHT(AG24,3)))) -> JPG | AJ24: =Translation!A74 -> Hydraulically controlled | AK24: =Translation!A85 -> Short heat-up time | AL24: =Translation!A98 -> Undersink installation | AM24: =Translation!A112 -> Device complete with the wall retainer integrated into the back panel | AN24: =Translation!A129 -> Special perlator with flow rate limiter for m22 (fem.) and m24 (male) | AO24: TRUE | AP24: TRUE | AQ24: TRUE | AY24: TRUE
A25: FALSE | B25: 999 | C25: 23 | D25: --- | E25: DMT 6 | F25: Multipoint | H25: FALSE | I25: FALSE | J25: TRUE | M25: FALSE | N25: FALSE | O25: FALSE | P25: TRUE | T25: FALSE | U25: 5.5 | V25: 6 | W25: 0 | AA25: 5.5 | AB25: FALSE | AC25: FALSE | AD25: 6 | AE25: 30 | AF25: PICDMT6.jpg | AG25: nicht gefunden! | AH25: x | AJ25: =Translation!A66 -> Space saving with compact design | AK25: =Translation!A84 -> 4 level power adjustments for flexible hot water temperature choices | AL25: =Translation!A115 -> Maintenance free copper tank | AM25: =Translation!A140 -> Maintenance free | AN25: =Translation!A138 -> Quick and easy installation | AO25: TRUE | AP25: TRUE | AQ25: TRUE | AY25: TRUE
A26: FALSE | B26: 999 | C26: 24 | D26: 222285 | E26: IS 60 E - 2 | F26: Shower Unit | H26: TRUE | I26: FALSE | J26: FALSE | M26: FALSE | N26: TRUE | O26: TRUE | P26: TRUE | T26: TRUE | U26: 6 | V26: 6.6 | W26: 7.1 | AA26: 6 | AB26: FALSE | AC26: FALSE | AD26: 6 | AE26: 32 | AF26: =RIGHT(AG26,LEN(AG26)-44) -> 8674561S35-45-60E-2Showerhead.jpg | AG26: http://www.stiebeleltronasia.com/productimg/8674561S35-45-60E-2Showerhead.jpg | AH26: =IF(AF26="---","",HYPERLINK(AG26,UPPER(RIGHT(AG26,3)))) -> JPG | AJ26: =Translation!A67 -> Chromed Shower Accessories | AK26: =Translation!A93 -> Anti-scalding with Double Action Thermostat | AL26: =Translation!A110 -> Works well even in low water pressure areas | AM26: =Translation!A115 -> Maintenance free copper tank | AN26: =Translation!A128 -> ELSD protection against Electric Shock | AO26: TRUE | AP26: TRUE | AQ26: TRUE | AY26: TRUE
A27: FALSE | B27: 999 | C27: 25 | D27: 220815 | E27: DHM 6 220 | F27: Multipoint | H27: FALSE | I27: FALSE | J27: TRUE | M27: FALSE | N27: TRUE | O27: TRUE | P27: FALSE | T27: TRUE | U27: 6 | V27: 0 | W27: 0 | AA27: 6 | AB27: FALSE | AC27: FALSE | AD27: 6 | AE27: 32 | AF27: PIC00001985-00.jpg | AG27: =IF(AF27="---","---","http://www.stiebel-eltron.de/ste_shared/imported/produktbilder/zoom/"&AF27) -> http://www.stiebel-eltron.de/ste_shared/imported/produktbilder/zoom/PIC00001985-00.jpg | AH27: JPG | AJ27: =Translation!A74 -> Hydraulically controlled | AK27: =Translation!A85 -> Short heat-up time | AL27: =Translation!A98 -> Undersink installation | AM27: =Translation!A112 -> Device complete with the wall retainer integrated into the back panel | AN27: =Translation!A129 -> Special perlator with flow rate limiter for m22 (fem.) and m24 (male) | AO27: TRUE | AP27: TRUE | AQ27: TRUE | AY27: TRUE
A28: FALSE | B28: 999 | C28: 26 | D28: 232217 | E28: DDH 6 | F28: Multipoint | H28: FALSE | I28: FALSE | J28: TRUE | M28: FALSE | N28: FALSE | O28: FALSE | P28: TRUE | T28: FALSE | U28: 6 | V28: 6.6 | W28: 7.1 | AA28: 6 | AB28: FALSE | AC28: FALSE | AD28: 6 | AE28: 32 | AF28: 5252197DH.jpg | AG28: http://www.stiebeleltronasia.com/productimg/5252197DH.jpg | AH28: JPG | AJ28: =Translation!A68 -> 3 level power adjustments | AK28: =Translation!A115 -> Maintenance free copper tank | AL28: =Translation!A99 -> The big and strong design knob give you easy to adjust power | AM28: =Translation!A113 -> Thermal cut-off for scalding prevention | AN28: =Translation!A130 -> High quality material case | AO28: TRUE | AP28: TRUE | AQ28: TRUE | AY28: TRUE
A29: FALSE | B29: 999 | C29: 27 | D29: 220881 | E29: DHCE 6 | F29: Multipoint | H29: FALSE | I29: FALSE | J29: TRUE | M29: FALSE | N29: FALSE | O29: FALSE | P29: TRUE | T29: FALSE | U29: 6 | V29: 6.6 | W29: 7.1 | AA29: 6 | AB29: FALSE | AC29: FALSE | AD29: 6 | AE29: 32 | AF29: 4372314HCE-6.gif | AG29: http://www.stiebeleltronasia.com/productimg/4372314HCE-6.gif | AH29: GIF | AJ29: =Translation!A69 -> Latest German design | AK29: =Translation!A123 -> Microprocessor controlled | AL29: =Translation!A100 -> Thermal sensor cut-off | AM29: =Translation!A114 -> Precise step temperature selection | AN29: =Translation!A131 -> Splash proof IP 25 | AO29: TRUE | AP29: TRUE | AQ29: TRUE | AY29: TRUE
A30: FALSE | B30: 999 | C30: 28 | D30: --- | E30: DHA 4/6 | F30: Multipoint | H30: FALSE | I30: FALSE | J30: TRUE | M30: FALSE | N30: FALSE | O30: FALSE | P30: TRUE | T30: FALSE | U30: 6 | V30: 6.6 | W30: 7.1 | AA30: 6 | AB30: FALSE | AC30: FALSE | AD30: 6 | AE30: 32 | AF30: 5026611HA-4-6.gif | AG30: http://www.stiebeleltronasia.com/productimg/5026611HA-4-6.gif | AH30: GIF | AJ30: =Translation!A132 -> Not available | AK30: =Translation!A132 -> Not available | AL30: =Translation!A132 -> Not available | AM30: =Translation!A132 -> Not available | AN30: =Translation!A132 -> Not available | AO30: TRUE | AP30: TRUE | AQ30: TRUE | AY30: TRUE
A31: FALSE | B31: 999 | C31: 29 | D31: 73480 | E31: DHC 6 | F31: Multipoint | H31: FALSE | I31: FALSE | J31: TRUE | M31: FALSE | N31: TRUE | O31: TRUE | P31: FALSE | T31: TRUE | U31: 6 | V31: 6.6 | W31: 7.1 | AA31: 6 | AB31: FALSE | AC31: FALSE | AD31: 6 | AE31: 32 | AF31: PIC00002247-00.jpg | AG31: =IF(AF31="---","---","http://www.stiebel-eltron.de/ste_shared/imported/produktbilder/zoom/"&AF31) -> http://www.stiebel-eltron.de/ste_shared/imported/produktbilder/zoom/PIC00002247-00.jpg | AH31: JPG | AJ31: =Translation!A74 -> Hydraulically controlled | AK31: =Translation!A86 -> Metal water connections | AL31: =Translation!A101 -> Power cable with safety plug | AM31: =Translation!A116 -> Tubular heater system | AN31: ="" ->  | AO31: TRUE | AP31: TRUE | AQ31: TRUE | AY31: TRUE
A32: FALSE | B32: 999 | C32: 30 | D32: 231279 | E32: DHC 6 EC | F32: Multipoint | H32: FALSE | I32: FALSE | J32: TRUE | M32: FALSE | N32: FALSE | O32: TRUE | P32: FALSE | T32: FALSE | U32: 6 | V32: 6.6 | W32: 7.1 | AA32: 6 | AB32: FALSE | AC32: FALSE | AD32: 6 | AE32: 32 | AF32: 3950439HC_EC250.png | AG32: http://www.stiebeleltronasia.com/productimg/3950439HC_EC250.png | AH32: PNG | AJ32: =Translation!A73 -> No scalding and overheating with thermal sensor cut-off | AK32: =Translation!A89 -> Precies step temperature selcetion | AL32: =Translation!A115 -> Maintenance free copper tank | AM32: =Translation!A119 -> Electronic max. temperature limitation | AN32: =Translation!A135 -> On wall and concealed installation | AO32: TRUE | AP32: TRUE | AQ32: TRUE | AY32: TRUE
A33: FALSE | B33: 999 | C33: 31 | D33: 232209 | E33: DHC 6 EL | F33: Multipoint | H33: FALSE | I33: FALSE | J33: TRUE | M33: FALSE | N33: FALSE | O33: TRUE | P33: FALSE | T33: FALSE | U33: 6 | V33: 6.6 | W33: 7.1 | AA33: 6 | AB33: FALSE | AC33: FALSE | AD33: 6 | AE33: 32 | AF33: 3950439HC_EC250.png | AG33: http://www.stiebeleltronasia.com/productimg/3950439HC_EC250.png | AH33: PNG | AJ33: =Translation!A73 -> No scalding and overheating with thermal sensor cut-off | AK33: =Translation!A89 -> Precies step temperature selcetion | AL33: =Translation!A115 -> Maintenance free copper tank | AM33: =Translation!A119 -> Electronic max. temperature limitation | AN33: =Translation!A135 -> On wall and concealed installation | AO33: TRUE | AP33: TRUE | AQ33: TRUE | AY33: TRUE
A34: FALSE | B34: 999 | C34: 32 | D34: 73479 | E34: DHC 6 U | F34: Multipoint | H34: FALSE | I34: FALSE | J34: TRUE | M34: FALSE | N34: TRUE | O34: TRUE | P34: FALSE | T34: TRUE | U34: 6 | V34: 6.6 | W34: 7.1 | AA34: 6 | AB34: FALSE | AC34: FALSE | AD34: 6 | AE34: 32 | AF34: PIC00002246-00.jpg | AG34: =IF(AF34="---","---","http://www.stiebel-eltron.de/ste_shared/imported/produktbilder/zoom/"&AF34) -> http://www.stiebel-eltron.de/ste_shared/imported/produktbilder/zoom/PIC00002246-00.jpg | AH34: JPG | AJ34: =Translation!A74 -> Hydraulically controlled | AK34: =Translation!A86 -> Metal water connections | AL34: =Translation!A101 -> Power cable with safety plug | AM34: =Translation!A116 -> Tubular heater system | AN34: ="" ->  | AO34: TRUE | AP34: TRUE | AQ34: TRUE | AY34: TRUE
A35: FALSE | B35: 999 | C35: 33 | D35: 232218 | E35: DDH 8 | F35: Multipoint | H35: FALSE | I35: TRUE | J35: TRUE | M35: TRUE | N35: FALSE | O35: FALSE | P35: TRUE | T35: FALSE | U35: 8 | V35: 8.7 | W35: 9.5 | AA35: 8 | AB35: FALSE | AC35: FALSE | AD35: 10 | AE35: 40 | AF35: 5252197DH.jpg | AG35: http://www.stiebeleltronasia.com/productimg/5252197DH.jpg | AH35: JPG | AJ35: =Translation!A70 -> DDH Multi point multi function | AK35: =Translation!A99 -> The big and strong design knob give you easy to adjust power | AL35: =Translation!A113 -> Thermal cut-off for scalding prevention | AM35: =Translation!A115 -> Maintenance free copper tank | AN35: ="" ->  | AO35: TRUE | AP35: TRUE | AQ35: TRUE | AY35: TRUE
A36: FALSE | B36: 999 | C36: 34 | D36: --- | E36: DHA 4/8 | F36: Multipoint | H36: FALSE | I36: TRUE | J36: TRUE | M36: TRUE | N36: FALSE | O36: TRUE | P36: FALSE | T36: FALSE | U36: 8 | V36: 8.8 | W36: 9.6 | AA36: 8 | AB36: FALSE | AC36: FALSE | AD36: 10 | AE36: 40 | AF36: 7984620HA-4-8.gif | AG36: http://www.stiebeleltronasia.com/productimg/7984620HA-4-8.gif | AH36: GIF | AJ36: =Translation!A132 -> Not available | AK36: =Translation!A132 -> Not available | AL36: =Translation!A132 -> Not available | AM36: =Translation!A132 -> Not available | AN36: =Translation!A132 -> Not available | AO36: TRUE | AP36: TRUE | AQ36: TRUE | AY36: TRUE
A37: TRUE | B37: 35 | C37: 35 | D37: 73716 | E37: DHA 4/8 L | F37: Multipoint | H37: FALSE | I37: TRUE | J37: TRUE | M37: TRUE | N37: TRUE | O37: FALSE | P37: FALSE | T37: TRUE | U37: 8 | V37: 8.8 | W37: 9.6 | AA37: 8 | AB37: TRUE | AC37: TRUE | AD37: 10 | AE37: 40 | AF37: PIC00002247-00.jpg | AG37: =IF(AF37="---","---","http://www.stiebel-eltron.de/ste_shared/imported/produktbilder/zoom/"&AF37) -> http://www.stiebel-eltron.de/ste_shared/imported/produktbilder/zoom/PIC00002247-00.jpg | AH37: JPG | AJ37: =Translation!A74 -> Hydraulically controlled | AK37: =Translation!A86 -> Metal water connections | AL37: =Translation!A101 -> Power cable with safety plug | AM37: =Translation!A116 -> Tubular heater system | AN37: ="" ->  | AO37: TRUE | AP37: TRUE | AQ37: TRUE | AY37: TRUE
A38: TRUE | B38: 36 | C38: 36 | D38: 73481 | E38: DHC 8 | F38: Multipoint | H38: FALSE | I38: TRUE | J38: TRUE | M38: TRUE | N38: TRUE | O38: FALSE | P38: FALSE | T38: TRUE | U38: 8 | V38: 8.8 | W38: 9.6 | AA38: 8 | AB38: TRUE | AC38: TRUE | AD38: 10 | AE38: 40 | AF38: PIC00002247-00.jpg | AG38: =IF(AF38="---","---","http://www.stiebel-eltron.de/ste_shared/imported/produktbilder/zoom/"&AF38) -> http://www.stiebel-eltron.de/ste_shared/imported/produktbilder/zoom/PIC00002247-00.jpg | AH38: JPG | AJ38: =Translation!A74 -> Hydraulically controlled | AK38: =Translation!A86 -> Metal water connections | AL38: =Translation!A101 -> Power cable with safety plug | AM38: =Translation!A116 -> Tubular heater system | AN38: ="" ->  | AO38: TRUE | AP38: TRUE | AQ38: TRUE | AY38: TRUE
A39: FALSE | B39: 999 | C39: 37 | D39: 232210 | E39: DHC 8 EL | F39: Multipoint | H39: FALSE | I39: TRUE | J39: TRUE | M39: TRUE | N39: FALSE | O39: TRUE | P39: FALSE | T39: FALSE | U39: 8 | V39: 8.7 | W39: 9.5 | AA39: 8 | AB39: FALSE | AC39: FALSE | AD39: 10 | AE39: 40 | AF39: 3950439HC_EC250.png | AG39: http://www.stiebeleltronasia.com/productimg/3950439HC_EC250.png | AH39: PNG | AJ39: =Translation!A73 -> No scalding and overheating with thermal sensor cut-off | AK39: =Translation!A89 -> Precies step temperature selcetion | AL39: =Translation!A115 -> Maintenance free copper tank | AM39: =Translation!A119 -> Electronic max. temperature limitation | AN39: =Translation!A135 -> On wall and concealed installation | AO39: TRUE | AP39: TRUE | AQ39: TRUE | AY39: TRUE
A40: FALSE | B40: 999 | C40: 38 | D40: 231280 | E40: DHC 8 EC | F40: Multipoint | H40: FALSE | I40: TRUE | J40: TRUE | M40: TRUE | N40: FALSE | O40: TRUE | P40: FALSE | T40: FALSE | U40: 8 | V40: 8.7 | W40: 9.5 | AA40: 8 | AB40: FALSE | AC40: FALSE | AD40: 10 | AE40: 40 | AF40: 3950439HC_EC250.png | AG40: http://www.stiebeleltronasia.com/productimg/3950439HC_EC250.png | AH40: PNG | AJ40: =Translation!A73 -> No scalding and overheating with thermal sensor cut-off | AK40: =Translation!A89 -> Precies step temperature selcetion | AL40: =Translation!A115 -> Maintenance free copper tank | AM40: =Translation!A119 -> Electronic max. temperature limitation | AN40: =Translation!A135 -> On wall and concealed installation | AO40: TRUE | AP40: TRUE | AQ40: TRUE | AY40: TRUE
A41: TRUE | B41: 39 | C41: 39 | D41: 224201 | E41: DHC-E 8/10 | F41: Multipoint | H41: FALSE | I41: TRUE | J41: TRUE | M41: TRUE | N41: TRUE | O41: FALSE | P41: FALSE | T41: TRUE | U41: 8.1 | V41: 8.8 | W41: 0 | AA41: 8.1 | AB41: TRUE | AC41: TRUE | AD41: 16 | AE41: 50 | AF41: PIC00002100-00.jpg | AG41: =IF(AF41="---","---","http://www.stiebel-eltron.de/ste_shared/imported/produktbilder/zoom/"&AF41) -> http://www.stiebel-eltron.de/ste_shared/imported/produktbilder/zoom/PIC00002100-00.jpg | AH41: JPG | AJ41: =Translation!A139 -> Simple and secure operation | AK41: =Translation!A138 -> Quick and easy installation | AL41: =Translation!A137 -> Works even with low water pressure | AM41: =Translation!A120 -> Use as a mains pressure appliance for several draw-off points or a shower | AN41: =Translation!A136 -> EMC compliant | AO41: TRUE | AP41: TRUE | AQ41: TRUE | AY41: TRUE
A42: FALSE | B42: 999 | C42: 40 | D42: --- | E42: DSC 85 | F42: Shower Unit | H42: TRUE | I42: FALSE | J42: FALSE | M42: FALSE | N42: TRUE | O42: TRUE | P42: TRUE | T42: TRUE | U42: 8.5 | V42: 9.3 | W42: 0 | AA42: 8.5 | AB42: FALSE | AC42: FALSE | AD42: 10 | AE42: 40 | AF42: dsc85.jpg | AG42: http://www.stiebel-eltron.co.za/pics/dsc85.jpg | AH42: JPG | AJ42: =Translation!A71 -> For a Single Shower | AK42: =Translation!A87 -> Non Pressure (Open Outlet) | AL42: =Translation!A102 -> Shower Rose 5 different spray settings | AM42: =Translation!A117 -> Shower Rose with Microban anti-bacterial | AN42: =Translation!A133 -> Shower Rose, Riser Rail & Soap Dish included | AO42: TRUE | AP42: TRUE | AQ42: TRUE | AY42: TRUE
A43: FALSE | B43: 999 | C43: 41 | D43: --- | E43: DJC 85 | F43: Shower Unit | H43: TRUE | I43: FALSE | J43: FALSE | M43: FALSE | N43: TRUE | O43: TRUE | P43: TRUE | T43: TRUE | U43: 8.5 | V43: 9.3 | W43: 0 | AA43: 8.5 | AB43: FALSE | AC43: FALSE | AD43: 10 | AE43: 40 | AF43: PICDJC85.jpg | AG43: http://img01.taobaocdn.com/bao/uploaded/i1/T1MU61FDXcXXXXXXXX_!!0-item_pic.jpg | AH43: JPG | AJ43: =Translation!A72 -> Aerojet On/OFF control for a more refreshing shower experience | AK43: =Translation!A88 -> Anti-scalding with Auto Thermal Cut-Off | AL43: =Translation!A103 -> Anti - bacterial shower head in 5 settings | AM43: =Translation!A118 -> EMC compliant and CB approved | AN43: =Translation!A134 -> ELSD protection against electric shock (unit with E) | AO43: TRUE | AP43: TRUE | AQ43: TRUE | AY43: TRUE
A44: FALSE | B44: 999 | C44: 42 | D44: 232211 | E44: DHC 10 EL | F44: Multipoint | H44: TRUE | I44: TRUE | J44: TRUE | M44: TRUE | N44: TRUE | O44: TRUE | P44: TRUE | T44: TRUE | U44: 9 | V44: 0 | W44: 0 | AA44: 9 | AB44: TRUE | AC44: FALSE | AD44: 16 | AE44: 50 | AF44: 3950439HC_EC250.png | AG44: http://www.stiebeleltronasia.com/productimg/3950439HC_EC250.png | AH44: PNG | AJ44: =Translation!A73 -> No scalding and overheating with thermal sensor cut-off | AK44: =Translation!A89 -> Precies step temperature selcetion | AL44: =Translation!A115 -> Maintenance free copper tank | AM44: =Translation!A119 -> Electronic max. temperature limitation | AN44: =Translation!A135 -> On wall and concealed installation | AO44: TRUE | AP44: TRUE | AQ44: TRUE | AY44: TRUE
A45: FALSE | B45: 999 | C45: 43 | D45: 230628 | E45: DHC-E 12 | F45: Multipoint | H45: TRUE | I45: TRUE | J45: TRUE | M45: TRUE | N45: TRUE | O45: FALSE | P45: FALSE | T45: TRUE | U45: 10 | V45: 11 | W45: 0 | AA45: 10 | AB45: TRUE | AC45: FALSE | AD45: 16 | AE45: 60 | AF45: PIC00002100-00.jpg | AG45: =IF(AF45="---","---","http://www.stiebel-eltron.de/ste_shared/imported/produktbilder/zoom/"&AF45) -> http://www.stiebel-eltron.de/ste_shared/imported/produktbilder/zoom/PIC00002100-00.jpg | AH45: JPG | AJ45: =Translation!A139 -> Simple and secure operation | AK45: =Translation!A138 -> Quick and easy installation | AL45: =Translation!A137 -> Works even with low water pressure | AM45: =Translation!A120 -> Use as a mains pressure appliance for several draw-off points or a shower | AN45: =Translation!A136 -> EMC compliant | AO45: TRUE | AP45: TRUE | AQ45: TRUE | AY45: TRUE
A46: FALSE | B46: 999 | C46: 44 | D46: 223420 | E46: Tempra 12 | F46: Multipoint | H46: TRUE | I46: TRUE | J46: TRUE | M46: TRUE | N46: FALSE | O46: TRUE | P46: TRUE | T46: FALSE | U46: 10 | V46: 11 | W46: 12 | AA46: 10 | AB46: FALSE | AC46: FALSE | AD46: 6 | AE46: 60 | AF46: PIC00002093-00.jpg | AG46: http://www.stiebel-eltron.de/ste_shared/imported/produktbilder/zoom/PIC00002093-00.jpg | AH46: JPG | AJ46: =Translation!A75 -> Electronic temperature control | AK46: =Translation!A105 -> Temperature adjustment 30 °C to 60 °C | AL46: =Translation!A139 -> Simple and secure operation | AM46: =Translation!A138 -> Quick and easy installation | AN46: =Translation!A137 -> Works even with low water pressure | AO46: TRUE | AP46: TRUE | AQ46: TRUE | AY46: TRUE
A47: FALSE | B47: 999 | C47: 45 | D47: 224196 | E47: Tempra 12 plus | F47: Multipoint | H47: TRUE | I47: TRUE | J47: TRUE | M47: TRUE | N47: TRUE | O47: FALSE | P47: FALSE | T47: TRUE | U47: 10 | V47: 11 | W47: 12 | AA47: 10 | AB47: TRUE | AC47: FALSE | AD47: 6 | AE47: 60 | AF47: PIC00002097-00.jpg | AG47: http://www.stiebel-eltron.de/ste_shared/imported/produktbilder/zoom/PIC00002097-00.jpg | AH47: JPG | AJ47: =Translation!A76 -> Full electronic control with motorised valve for permanently accurate temperature selection | AK47: =Translation!A91 -> Temperature selection to the exact degree with easy to read LCD | AL47: =Translation!A105 -> Temperature adjustment 30 °C to 60 °C | AM47: =Translation!A139 -> Simple and secure operation | AN47: =Translation!A138 -> Quick and easy installation | AO47: TRUE | AP47: TRUE | AQ47: TRUE | AY47: TRUE
A48: FALSE | B48: 999 | C48: 46 | D48: 223421 | E48: Tempra 15 | F48: Multipoint | H48: TRUE | I48: TRUE | J48: TRUE | M48: TRUE | N48: FALSE | O48: TRUE | P48: TRUE | T48: FALSE | U48: 12 | V48: 13.2 | W48: 14.4 | AA48: 12 | AB48: FALSE | AC48: FALSE | AD48: 2 x 8 | AE48: 2 x 40 | AF48: PIC00002093-00.jpg | AG48: http://www.stiebel-eltron.de/ste_shared/imported/produktbilder/zoom/PIC00002093-00.jpg | AH48: JPG | AJ48: =Translation!A75 -> Electronic temperature control | AK48: =Translation!A105 -> Temperature adjustment 30 °C to 60 °C | AL48: =Translation!A139 -> Simple and secure operation | AM48: =Translation!A138 -> Quick and easy installation | AN48: =Translation!A137 -> Works even with low water pressure | AO48: TRUE | AP48: TRUE | AQ48: TRUE | AY48: TRUE
A49: FALSE | B49: 999 | C49: 47 | D49: 224197 | E49: Tempra 15 plus | F49: Multipoint | H49: TRUE | I49: TRUE | J49: TRUE | M49: TRUE | N49: TRUE | O49: FALSE | P49: FALSE | T49: TRUE | U49: 12 | V49: 13.2 | W49: 14.4 | AA49: 12 | AB49: TRUE | AC49: FALSE | AD49: 2 x 8 | AE49: 2 x 40 | AF49: PIC00002097-00.jpg | AG49: http://www.stiebel-eltron.de/ste_shared/imported/produktbilder/zoom/PIC00002097-00.jpg | AH49: JPG | AJ49: =Translation!A76 -> Full electronic control with motorised valve for permanently accurate temperature selection | AK49: =Translation!A91 -> Temperature selection to the exact degree with easy to read LCD | AL49: =Translation!A105 -> Temperature adjustment 30 °C to 60 °C | AM49: =Translation!A139 -> Simple and secure operation | AN49: =Translation!A138 -> Quick and easy installation | AO49: TRUE | AP49: TRUE | AQ49: TRUE | AY49: TRUE
A50: FALSE | B50: 999 | C50: 48 | D50: 182137 | E50: DHF 12 C1 | F50: Multipoint | H50: TRUE | I50: TRUE | J50: TRUE | M50: TRUE | N50: TRUE | O50: TRUE | P50: TRUE | T50: TRUE | U50: 13.2 | V50: 13.2 | W50: 0 | AA50: 13.2 | AB50: TRUE | AC50: FALSE | AD50: 16 | AE50: 60 | AF50: PIC00002264-00.jpg | AG50: http://www.stiebel-eltron.de/ste_shared/imported/produktbilder/zoom/PIC00002264-00.jpg | AH50: JPG | AJ50: =Translation!A74 -> Hydraulically controlled | AK50: =Translation!A90 -> Output selector for locking out the higher output stages | AL50: =Translation!A104 -> The control valve largely compensates for pressure fluctuations | AM50: ="" ->  | AN50: ="" ->  | AO50: TRUE | AP50: TRUE | AQ50: TRUE | AY50: TRUE
A51: FALSE | B51: 999 | C51: 49 | D51: 223422 | E51: Tempra 20 | F51: Multipoint | H51: TRUE | I51: TRUE | J51: TRUE | M51: TRUE | N51: FALSE | O51: TRUE | P51: TRUE | T51: FALSE | U51: 16 | V51: 17.6 | W51: 19.2 | AA51: 16 | AB51: FALSE | AC51: FALSE | AD51: 2 x 8 | AE51: 2 x 50 | AF51: PIC00002093-00.jpg | AG51: http://www.stiebel-eltron.de/ste_shared/imported/produktbilder/zoom/PIC00002093-00.jpg | AH51: JPG | AJ51: =Translation!A75 -> Electronic temperature control | AK51: =Translation!A105 -> Temperature adjustment 30 °C to 60 °C | AL51: =Translation!A139 -> Simple and secure operation | AM51: =Translation!A138 -> Quick and easy installation | AN51: =Translation!A137 -> Works even with low water pressure | AO51: TRUE | AP51: TRUE | AQ51: TRUE | AY51: TRUE
A52: FALSE | B52: 999 | C52: 50 | D52: 224198 | E52: Tempra 20 plus | F52: Multipoint | H52: TRUE | I52: TRUE | J52: TRUE | M52: TRUE | N52: TRUE | O52: FALSE | P52: FALSE | T52: TRUE | U52: 16 | V52: 17.6 | W52: 19.2 | AA52: 16 | AB52: TRUE | AC52: FALSE | AD52: 2 x 8 | AE52: 2 x 50 | AF52: PIC00002097-00.jpg | AG52: http://www.stiebel-eltron.de/ste_shared/imported/produktbilder/zoom/PIC00002097-00.jpg | AH52: JPG | AJ52: =Translation!A76 -> Full electronic control with motorised valve for permanently accurate temperature selection | AK52: =Translation!A91 -> Temperature selection to the exact degree with easy to read LCD | AL52: =Translation!A105 -> Temperature adjustment 30 °C to 60 °C | AM52: =Translation!A139 -> Simple and secure operation | AN52: =Translation!A138 -> Quick and easy installation | AO52: TRUE | AP52: TRUE | AQ52: TRUE | AY52: TRUE
A53: FALSE | B53: 999 | C53: 51 | D53: 223424 | E53: Tempra 24 | F53: Multipoint | H53: TRUE | I53: TRUE | J53: TRUE | M53: TRUE | N53: FALSE | O53: TRUE | P53: TRUE | T53: FALSE | U53: 20 | V53: 22 | W53: 24 | AA53: 20 | AB53: FALSE | AC53: FALSE | AD53: 2 x 6 | AE53: 2 x 60 | AF53: PIC00002093-00.jpg | AG53: http://www.stiebel-eltron.de/ste_shared/imported/produktbilder/zoom/PIC00002093-00.jpg | AH53: JPG | AJ53: =Translation!A75 -> Electronic temperature control | AK53: =Translation!A105 -> Temperature adjustment 30 °C to 60 °C | AL53: =Translation!A139 -> Simple and secure operation | AM53: =Translation!A138 -> Quick and easy installation | AN53: =Translation!A137 -> Works even with low water pressure | AO53: TRUE | AP53: TRUE | AQ53: TRUE | AY53: TRUE
A54: FALSE | B54: 999 | C54: 52 | D54: 224199 | E54: Tempra 24 plus | F54: Multipoint | H54: TRUE | I54: TRUE | J54: TRUE | M54: TRUE | N54: TRUE | O54: FALSE | P54: FALSE | T54: TRUE | U54: 20 | V54: 22 | W54: 24 | AA54: 20 | AB54: TRUE | AC54: FALSE | AD54: 2 x 6 | AE54: 2 x 60 | AF54: PIC00002097-00.jpg | AG54: http://www.stiebel-eltron.de/ste_shared/imported/produktbilder/zoom/PIC00002097-00.jpg | AH54: JPG | AJ54: =Translation!A76 -> Full electronic control with motorised valve for permanently accurate temperature selection | AK54: =Translation!A91 -> Temperature selection to the exact degree with easy to read LCD | AL54: =Translation!A105 -> Temperature adjustment 30 °C to 60 °C | AM54: =Translation!A139 -> Simple and secure operation | AN54: =Translation!A138 -> Quick and easy installation | AO54: TRUE | AP54: TRUE | AQ54: TRUE | AY54: TRUE
A55: FALSE | B55: 999 | C55: 53 | D55: 223425 | E55: Tempra 29 plus | F55: Multipoint | H55: TRUE | I55: TRUE | J55: TRUE | M55: TRUE | N55: TRUE | O55: TRUE | P55: TRUE | T55: TRUE | U55: 24 | V55: 26.4 | W55: 28.8 | AA55: 24 | AB55: TRUE | AC55: FALSE | AD55: 3 x 8 | AE55: 3 x 50 | AF55: PIC00002097-00.jpg | AG55: http://www.stiebel-eltron.de/ste_shared/imported/produktbilder/zoom/PIC00002097-00.jpg | AH55: JPG | AJ55: =Translation!A76 -> Full electronic control with motorised valve for permanently accurate temperature selection | AK55: =Translation!A91 -> Temperature selection to the exact degree with easy to read LCD | AL55: =Translation!A105 -> Temperature adjustment 30 °C to 60 °C | AM55: =Translation!A139 -> Simple and secure operation | AN55: =Translation!A138 -> Quick and easy installation | AO55: TRUE | AP55: TRUE | AQ55: TRUE | AY55: TRUE
A56: FALSE | B56: 999 | C56: 54 | D56: 2234216 | E56: Tempra 36 plus | F56: Multipoint | H56: TRUE | I56: TRUE | J56: TRUE | M56: TRUE | N56: TRUE | O56: TRUE | P56: TRUE | T56: TRUE | U56: 30 | V56: 33 | W56: 36 | AA56: 30 | AB56: TRUE | AC56: FALSE | AD56: 3 x 6 | AE56: 3 x 60 | AF56: PIC00002097-00.jpg | AG56: http://www.stiebel-eltron.de/ste_shared/imported/produktbilder/zoom/PIC00002097-00.jpg | AH56: JPG | AJ56: =Translation!A76 -> Full electronic control with motorised valve for permanently accurate temperature selection | AK56: =Translation!A91 -> Temperature selection to the exact degree with easy to read LCD | AL56: =Translation!A105 -> Temperature adjustment 30 °C to 60 °C | AM56: =Translation!A139 -> Simple and secure operation | AN56: =Translation!A138 -> Quick and easy installation | AO56: TRUE | AP56: TRUE | AQ56: TRUE | AY56: TRUE

Sheet Translation (hidden)
A2: English/Englisch | B2: Deutsch | C2: English/Englisch | D2: French
A3: DHW Unit selector | B3: Warmwasser-Navigator | C3: DHW Unit selector
A4: Solutions for efficient domestic hot water production | B4: Lösungen für die effiziente Warmwasserbereitung | C4: Solutions for efficient domestic hot water production
A5: System selection | B5: Systemauswahl | C5: System selection
A6: Inlet temperature | B6: Eintrittstemperatur | C6: Inlet temperature
A7: No. of persons | B7: Personenzahl | C7: No. of persons
A8: Power supply | B8: Elektroanschluss | C8: Power supply
A9: Draw-off point | B9: Entnahmestellen | C9: Draw-off point
A10: Datasheet | B10: Produktdatenblatt | C10: Datasheet
A11: Product sheet Accessories | B11: Datenblatt Zubehör | C11: Product sheet Accessories
A12: Quality standards | B12: Qualitätsstandard | C12: Quality standards
A13: Person | B13: Person | C13: Person
A14: Persons | B14: Personen | C14: Persons
A15: Bath tub | B15: Badewanne | C15: Bath tub
A16: Shower | B16: Dusche | C16: Shower
A17: Kitchen sink | B17: Küchenspüle | C17: Kitchen sink
A18: Handwash sink | B18: Handwaschbecken | C18: Handwash sink
A19: Features | B19: Features | C19: Features
A20: Technical Data | B20: Technische Daten | C20: Technical Data
A21: Consumption | B21: Verbrauch | C21: Consumption
A22: Electricity demand | B22: Strombedarf | C22: Electricity demand
A23: Water demand | B23: Warmwasserbedarf | C23: Water demand
A24: m³/a | B24: m³/Jahr | C24: m³/a
A25: kWh/a | B25: kWh/Jahr | C25: kWh/a
A26: CO2-Emissions | B26: CO2-Emmission | C26: CO2-Emissions
A27: kg/a | B27: kg/Jahr | C27: kg/a
A28: Your modifications get lost. Continue? | B28: Alle Änderungen werden verworfen. Fortfahren? | C28: Your modifications get lost. Continue?
A29: Standard values | B29: Standardwerte | C29: Standard values
A30: €/a | B30: €/Jahr | C30: €/a
A31: Mat.No. | B31: Art.Nr. | C31: Mat.No.
A32: Advanced settings | B32: Erweiterte Einstellungen | C32: Advanced settings
A33: Standard settings | B33: Grundeinstellungen | C33: Standard settings
A34: Useable time of DHW production | B34: Nutzungsdauer Warmwasser in Wochen/Jahr | C34: Useable time of DHW production
A35: Dispersion losses (individual supply) | B35: Verteilungsverluste Einzelversorgung in % | C35: Dispersion losses (individual supply)
A36: Dispersion losses (collective provision) | B36: Verteilungsverluste Gruppenversorgung in % | C36: Dispersion losses (collective provision)
A37: CO2-Emission electricity [g/kWh] | B37: CO2-Emmision Strom in g/kWh | C37: CO2-Emission electricity [g/kWh]
A38: Volume flow in liters/min | B38: Durchfluss in Liter/min | C38: Volume flow in liters/min
A39: Temperature to fill the bath tub? | B39: Fülltemperatur in °C | C39: Temperature to fill the bath tub?
A40: How often do you have a bath per week? | B40: Anzahl Bäder pro Woche (je Person) | C40: How often do you have a bath per week?
A41: Time of tapping in minutes | B41: Entnahmedauer in min | C41: Time of tapping in minutes
A42: Useable temperature in °C | B42: Nutztemperatur in °C | C42: Useable temperature in °C
A43: Frequency per day | B43: Nutzungshäufigkeit pro Tag | C43: Frequency per day
A44: Frequency per day (per person) | B44: Nutzungshäufigkeit pro Tag (je Person) | C44: Frequency per day (per person)
A45: Shower temperature in °C | B45: Duschtemperatur in °C | C45: Shower temperature in °C
A46: Showers per week (per person) | B46: Anzahl Duschen pro Woche (je Person) | C46: Showers per week (per person)
A47: Average shower time in minutes | B47: Durchschnittliche Duschdauer in Minuten | C47: Average shower time in minutes
A48: | Save & back | B48: | Speichern und zurück | C48: | Save & back
A49: | Standard settings | B49: | Standardwerte | C49: | Standard settings
A50: Required hot water output | B50: Warmwasserleistung | C50: Required hot water output
A51: Power device | B51: Leistung Gerät | C51: Power device
A52: Rated Current | B52: Absicherung | C52: Rated Current
A53: Cable cross-section | B53: Leitungsquerschnitt | C53: Cable cross-section
A54: Technical data | B54: Technische Daten | C54: Technical data
A55: Consumption | B55: Verbrauch | C55: Consumption
A56: Error warm water Navigator Report | B56: Fehler Warmwasser-Navigator melden | C56: Error warm water Navigator Report
A57: Error Description | B57: Fehlerbeschreibung | C57: Error Description
A58: Maximum flow | B58: Max. Durchfluss | C58: Maximum flow
A59: Outlet temperature | B59: Austrittstemperatur | C59: Outlet temperature
A60: The worlds first instant hybrid water heater | B60: The worlds first instant hybrid water heater | C60: The worlds first instant hybrid water heater
A61: Step less Temperature Control Knob | B61: Step less Temperature Control Knob | C61: Step less Temperature Control Knob
A62: Luxury design | B62: Luxury design | C62: Luxury design
A63: Lage coloured LCD display | B63: Lage coloured LCD display | C63: Lage coloured LCD display
A64: Awarded German design | B64: Awarded German design | C64: Awarded German design
A65: Electronically controlled mini instantaneous water heater for supplying a basin | B65: Electronically controlled mini instantaneous water heater for supplying a basin | C65: Electronically controlled mini instantaneous water heater for supplying a basin
A66: Space saving with compact design | B66: Space saving with compact design | C66: Space saving with compact design
A67: Chromed Shower Accessories | B67: Chromed Shower Accessories | C67: Chromed Shower Accessories
A68: 3 level power adjustments | B68: 3 level power adjustments | C68: 3 level power adjustments
A69: Latest German design | B69: Latest German design | C69: Latest German design
A70: DDH Multi point multi function | B70: DDH Multi point multi function | C70: DDH Multi point multi function
A71: For a Single Shower | B71: For a Single Shower | C71: For a Single Shower
A72: Aerojet On/OFF control for a more refreshing shower experience | B72: Aerojet On/OFF control for a more refreshing shower experience | C72: Aerojet On/OFF control for a more refreshing shower experience
A73: No scalding and overheating with thermal sensor cut-off | B73: No scalding and overheating with thermal sensor cut-off | C73: No scalding and overheating with thermal sensor cut-off
A74: Hydraulically controlled | B74: Hydraulically controlled | C74: Hydraulically controlled
A75: Electronic temperature control | B75: Electronic temperature control | C75: Electronic temperature control
A76: Full electronic control with motorised valve for permanently accurate temperature selection | B76: Full electronic control with motorised valve for permanently accurate temperature selection | C76: Full electronic control with motorised valve for permanently accurate temperature selection
A77: Up to 40% of water and energy saving | B77: Up to 40% of water and energy saving | C77: Up to 40% of water and energy saving
A78: Anti-scalding with Action Thermostat | B78: Anti-scalding with Action Thermostat | C78: Anti-scalding with Action Thermostat
A79: Aero Jet ON/OFF control | B79: Aero Jet ON/OFF control | C79: Aero Jet ON/OFF control
A80: ELCB protection against Electric Shock | B80: ELCB protection against Electric Shock | C80: ELCB protection against Electric Shock
A81: ELCB protection against electricity leakage | B81: ELCB protection against electricity leakage | C81: ELCB protection against electricity leakage
A82: Built in Aero Jet | B82: Built in Aero Jet | C82: Built in Aero Jet
A83: Constant outlet temperature up to the output limit thanks to electronics | B83: Constant outlet temperature up to the output limit thanks to electronics | C83: Constant outlet temperature up to the output limit thanks to electronics
A84: 4 level power adjustments for flexible hot water temperature choices | B84: 4 level power adjustments for flexible hot water temperature choices | C84: 4 level power adjustments for flexible hot water temperature choices
A85: Short heat-up time | B85: Short heat-up time | C85: Short heat-up time
A86: Metal water connections | B86: Metal water connections | C86: Metal water connections
A87: Non Pressure (Open Outlet) | B87: Non Pressure (Open Outlet) | C87: Non Pressure (Open Outlet)
A88: Anti-scalding with Auto Thermal Cut-Off | B88: Anti-scalding with Auto Thermal Cut-Off | C88: Anti-scalding with Auto Thermal Cut-Off
A89: Precies step temperature selcetion | B89: Precies step temperature selcetion | C89: Precies step temperature selcetion
A90: Output selector for locking out the higher output stages | B90: Output selector for locking out the higher output stages | C90: Output selector for locking out the higher output stages
A91: Temperature selection to the exact degree with easy to read LCD | B91: Temperature selection to the exact degree with easy to read LCD | C91: Temperature selection to the exact degree with easy to read LCD
A92: Patented Aerojet for saving water and electricity | B92: Patented Aerojet for saving water and electricity | C92: Patented Aerojet for saving water and electricity
A93: Anti-scalding with Double Action Thermostat | B93: Anti-scalding with Double Action Thermostat | C93: Anti-scalding with Double Action Thermostat
A94: Multi color display | B94: Multi color display | C94: Multi color display
A95: Easy and save to operate | B95: Easy and save to operate | C95: Easy and save to operate
A96: Tank made from X-tra Reinforced Polyamide | B96: Tank made from X-tra Reinforced Polyamide | C96: Tank made from X-tra Reinforced Polyamide
A97: Temperature can be selected internally from approx. 30 to 50 °C | B97: Temperature can be selected internally from approx. 30 to 50 °C | C97: Temperature can be selected internally from approx. 30 to 50 °C
A98: Undersink installation | B98: Undersink installation | C98: Undersink installation
A99: The big and strong design knob give you easy to adjust power | B99: The big and strong design knob give you easy to adjust power | C99: The big and strong design knob give you easy to adjust power
A100: Thermal sensor cut-off | B100: Thermal sensor cut-off | C100: Thermal sensor cut-off
A101: Power cable with safety plug | B101: Power cable with safety plug | C101: Power cable with safety plug
A102: Shower Rose 5 different spray settings | B102: Shower Rose 5 different spray settings | C102: Shower Rose 5 different spray settings
A103: Anti - bacterial shower head in 5 settings | B103: Anti - bacterial shower head in 5 settings | C103: Anti - bacterial shower head in 5 settings
A104: The control valve largely compensates for pressure fluctuations | B104: The control valve largely compensates for pressure fluctuations | C104: The control valve largely compensates for pressure fluctuations
A105: Temperature adjustment 30 °C to 60 °C | B105: Temperature adjustment 30 °C to 60 °C | C105: Temperature adjustment 30 °C to 60 °C
A106: Exact & easy temperature control | B106: Exact & easy temperature control | C106: Exact & easy temperature control
A107: Exact and quick temperature selection | B107: Exact and quick temperature selection | C107: Exact and quick temperature selection
A108: Rust-free copper tank | B108: Rust-free copper tank | C108: Rust-free copper tank
A109: 5 in 1 chrome accessories | B109: 5 in 1 chrome accessories | C109: 5 in 1 chrome accessories
A110: Works well even in low water pressure areas | B110: Works well even in low water pressure areas | C110: Works well even in low water pressure areas
A111: Flow rate can be selected internally | B111: Flow rate can be selected internally | C111: Flow rate can be selected internally
A112: Device complete with the wall retainer integrated into the back panel | B112: Device complete with the wall retainer integrated into the back panel | C112: Device complete with the wall retainer integrated into the back panel
A113: Thermal cut-off for scalding prevention | B113: Thermal cut-off for scalding prevention | C113: Thermal cut-off for scalding prevention
A114: Precise step temperature selection | B114: Precise step temperature selection | C114: Precise step temperature selection
A115: Maintenance free copper tank | B115: Maintenance free copper tank | C115: Maintenance free copper tank
A116: Tubular heater system | B116: Tubular heater system | C116: Tubular heater system
A117: Shower Rose with Microban anti-bacterial | B117: Shower Rose with Microban anti-bacterial | C117: Shower Rose with Microban anti-bacterial
A118: EMC compliant and CB approved | B118: EMC compliant and CB approved | C118: EMC compliant and CB approved
A119: Electronic max. temperature limitation | B119: Electronic max. temperature limitation | C119: Electronic max. temperature limitation
A120: Use as a mains pressure appliance for several draw-off points or a shower | B120: Use as a mains pressure appliance for several draw-off points or a shower | C120: Use as a mains pressure appliance for several draw-off points or a shower
A121: Designed and manufactured according to CB standard | B121: Designed and manufactured according to CB standard | C121: Designed and manufactured according to CB standard
A122: Electricity Surge Protection | B122: Electricity Surge Protection | C122: Electricity Surge Protection
A123: Microprocessor controlled | B123: Microprocessor controlled | C123: Microprocessor controlled
A124: Microcontroller temperature stabilizer | B124: Microcontroller temperature stabilizer | C124: Microcontroller temperature stabilizer
A125: Chromed shower head in 5 settings | B125: Chromed shower head in 5 settings | C125: Chromed shower head in 5 settings
A126: Effective bare wire heating system | B126: Effective bare wire heating system | C126: Effective bare wire heating system
A127: Easy installation | B127: Easy installation | C127: Easy installation
A128: ELSD protection against Electric Shock | B128: ELSD protection against Electric Shock | C128: ELSD protection against Electric Shock
A129: Special perlator with flow rate limiter for m22 (fem.) and m24 (male) | B129: Special perlator with flow rate limiter for m22 (fem.) and m24 (male) | C129: Special perlator with flow rate limiter for m22 (fem.) and m24 (male)
A130: High quality material case | B130: High quality material case | C130: High quality material case
A131: Splash proof IP 25 | B131: Splash proof IP 25 | C131: Splash proof IP 25
A132: Not available | B132: Not available | C132: Not available
A133: Shower Rose, Riser Rail & Soap Dish included | B133: Shower Rose, Riser Rail & Soap Dish included | C133: Shower Rose, Riser Rail & Soap Dish included
A134: ELSD protection against electric shock (unit with E) | B134: ELSD protection against electric shock (unit with E) | C134: ELSD protection against electric shock (unit with E)
A135: On wall and concealed installation | B135: On wall and concealed installation | C135: On wall and concealed installation
A136: EMC compliant | B136: EMC compliant | C136: EMC compliant
A137: Works even with low water pressure | B137: Works even with low water pressure | C137: Works even with low water pressure
A138: Quick and easy installation | B138: Quick and easy installation | C138: Quick and easy installation
A139: Simple and secure operation | B139: Simple and secure operation | C139: Simple and secure operation
A140: Maintenance free | B140: Maintenance free | C140: Maintenance free

Sheet BilderGeraete (hidden)
A2: Index | B2: ArtikelNr | C2: Bezeichnung | D2: Art
A3: 1 | B3: --- | C3: DJ 30 E - 2 | D3: Shower Unit
A4: 2 | B4: 231001 | C4: DEM 3 | D4: Multipoint
A5: 3 | B5: 220813 | C5: DHM 3 | D5: Multipoint
A6: 4 | B6: 222296 | C6: AQ 35 E - 2 | D6: Shower Unit
A7: 5 | B7: 222290 | C7: IJ 35 E | D7: Shower Unit
A8: 6 | B8: 222358 | C8: IL 35 EC | D8: Shower Unit
A9: 7 | B9: 222283 | C9: IS 35 E - 2 | D9: Shower Unit
A10: 8 | B10: --- | C10: IP 35 EC | D10: Shower Unit
A11: 9 | B11: --- | C11: WS 35 E | D11: Shower Unit
A12: 10 | B12: 230997 | C12: XG 35 EC | D12: Shower Unit
A13: 11 | B13: 231002 | C13: DEM 4 | D13: Multipoint
A14: 12 | B14: 220814 | C14: DHM 4 | D14: Multipoint
A15: 13 | B15: 73715 | C15: DHC 4 | D15: Multipoint
A16: 14 | B16: 222297 | C16: AQ 45 E - 2 | D16: Shower Unit
A17: 15 | B17: 222291 | C17: IJ 45 E | D17: Shower Unit
A18: 16 | B18: 222359 | C18: IL 45 EC | D18: Shower Unit
A19: 17 | B19: 222284 | C19: IS 45 E - 2 | D19: Shower Unit
A20: 18 | B20: --- | C20: IP 45EC | D20: Shower Unit
A21: 19 | C21: WS 45 E | D21: Shower Unit
A22: 20 | B22: 230998 | C22: XG 45 EC | D22: Shower Unit
A23: 21 | B23: 231215 | C23: DEM 6 | D23: Multipoint
A24: 22 | B24: 185473 | C24: DHM 6 | D24: Multipoint
A25: 23 | B25: --- | C25: DMT 6 | D25: Multipoint
A26: 24 | B26: 222285 | C26: IS 60 E - 2 | D26: Shower Unit
A27: 25 | B27: 220815 | C27: DHM 6 220 | D27: Multipoint
A28: 26 | B28: 232217 | C28: DDH 6 | D28: Multipoint
A29: 27 | B29: 220881 | C29: DHCE 6 | D29: Multipoint
A30: 28 | B30: --- | C30: DHA 4/6 | D30: Multipoint
A31: 29 | B31: 73480 | C31: DHC 6 | D31: Multipoint
A32: 30 | B32: 231279 | C32: DHC 6 EC | D32: Multipoint
A33: 31 | B33: 232209 | C33: DHC 6 EL | D33: Multipoint
A34: 32 | B34: 73479 | C34: DHC 6 U | D34: Multipoint
A35: 33 | B35: 232218 | C35: DDH 8 | D35: Multipoint
A36: 34 | B36: --- | C36: DHA 4/8 | D36: Multipoint
A37: 35 | B37: 73716 | C37: DHA 4/8 L | D37: Multipoint
A38: 36 | B38: 73481 | C38: DHC 8 | D38: Multipoint
A39: 37 | B39: 232210 | C39: DHC 8 EL | D39: Multipoint
A40: 38 | B40: 231280 | C40: DHC 8 EC | D40: Multipoint
A41: 39 | B41: 224201 | C41: DHC-E 8/10 | D41: Multipoint
A42: 40 | B42: --- | C42: DSC 85 | D42: Shower Unit
A43: 41 | B43: --- | C43: DJC 85 | D43: Shower Unit
A44: 42 | B44: 232211 | C44: DHC 10 EL | D44: Multipoint
A45: 43 | B45: 230628 | C45: DHC-E 12 | D45: Multipoint
A46: 44 | B46: 223420 | C46: Tempra 12 | D46: Multipoint
A47: 45 | B47: 224196 | C47: Tempra 12 plus | D47: Multipoint
A48: 46 | B48: 223421 | C48: Tempra 15 | D48: Multipoint
A49: 47 | B49: 224197 | C49: Tempra 15 plus | D49: Multipoint
A50: 48 | B50: 182137 | C50: DHF 12 C1 | D50: Multipoint
A51: 49 | B51: 223422 | C51: Tempra 20 | D51: Multipoint
A52: 50 | B52: 224198 | C52: Tempra 20 plus | D52: Multipoint
A53: 51 | B53: 223424 | C53: Tempra 24 | D53: Multipoint
A54: 52 | B54: 224199 | C54: Tempra 24 plus | D54: Multipoint
A55: 53 | B55: 223425 | C55: Tempra 29 plus | D55: Multipoint
A56: 54 | B56: 2234216 | C56: Tempra 36 plus | D56: Multipoint
